{"text_format":"1","workbook":"xlsx","n_sheets":12,"sheets":["start","output","TemplatePDF","PDF","DCP Simulator","DataBackup","markets","Languages","calendar","Holidays","DCP_LimitCalculation","AuxiliaryCalculationTab"],"not_rendered":{"charts":0,"images":1,"macros":1,"external_links":1,"defined_names":188,"comments":3,"pivot_tables":0},"unopened":[],"bounds":{"document_bytes":16777216,"sheet_cells":100000,"rows_first":2000,"rows_last":500,"rows_between":2000,"halvings":0,"cell_chars":16384,"cell_head_chars":4096},"cells_cut":0,"cells_raw":0,"read":"whole","date_system":"1900"}

{"sheet":"start","index":0,"n_rows":48,"n_cols":7,"rows_kept":48,"cut":false,"hidden":true,"merged":[[12,0,15,0],[12,1,15,1],[12,2,14,3],[3,5,3,18],[11,5,11,22],[10,5,10,22],[8,5,8,22],[9,5,9,22]]}
[]
[null,null,null,"DCP"]
[null,null,null,"ABCEX",null,"Introduction:"]
[null,null,null,null,null,"The aim of this tool is to always know the base exposure which is calculate from the set base limits. Your base exposure must always be lower or equal to your collateral.\nAlso this tool shows the baselimit which you will get for each day, including holidays. Therefore, prior to holidays please check with the help of this tool if the current set up/Collateral\nis still sufficient. If you have question regarding any holidays please reach out to clearing@ecc.de. "]
["COLLATERAL","In which currency (EUR or GBP) will the collateral be provided?"]
[]
[null,null,null,"COLLATERAL Currency"]
[null,null,null,"GBP",null,"Mannual:"]
[null,null,"Exchange Rate GBP/EUR",1.0626992561105209,null,"You need to choose the currency of your collateral. Afterwards set the markets, currency, baselimit business day and for non-business days. After setting the date (careful first day must be an ECC businessday) press Start Base Limit Calculation"]
[null,null,"invers zu D9:","0,941",null,"After any changes (new market, different base limit etc.) the button Start Base Limit Calculation must be pressed."]
["CLIENT PREFERENCES",null,null,null,null,"The result can be seen on the \"output\" sheet. Here you can see multiple things. First you see the maximum base exposure during the time period you chose as input in C25 and D25 "]
[{"$f":"COUNTA($A$17:$A$24)","v":2},null,null,null,null,"Then you can also find the base limit given on the respective day in column \"I\" and the base exposure for that day in column \"K\"."]
["MARKET",null,"Define the base Limit amount necessary for each calendar day in the markets on business days and non-business days here:"]
[]
[]
[null,null,"BIZ DAY - ABSOLUTE","NON BIZ DAY - ABSOLUTE"]
["EPEX_AUCTION_EUR","EUR",52000,0]
["EPEX_CONTINUOUS_EUR","EUR",50000,20000]
[]
[]
[]
[]
[]
[]
["INPUT DATES"]
[]
[null,null,"From","Until"]
["Output Baselimits …",null,"09.01.2025","09.01.2025"]
[]
[]
[]
["Disclaimer:"]
["EEX provides this tool free of charge. No contractual obligations arise from this. The results are not legally binding and serve a purely informatory purpose. You may use this tool at your own risk. The implementability, usability, functionality of the tool and correctness as well as accuracy of the resulting data cannot be guaranteed. Past performance may not be indicative of future results. If you decide to use this tool, you recognize and agree that neither EEX nor any group member of the EEX Group will accept liability for the results generated by this tool and/or the usage thereof. You must not forward this tool to any third party."]
[]
["Locality","Release","Release date","UNIX TimeStamp","calculated date","Ticket","Commit ID"]
["Remote","1.2.6","2024-09-07",{"$f":"(C36 - DATE(1970,1,1)) * 86400","v":1725667200},{"$f":"DATE(1970,1,1) + (D36/ 86400)","v":"2024-09-07"},"IDVIM-495","d15ef245979750e7dec249f2755de6bfa00e04bd "]
["Local","1.3.0","2025-01-21",1737417600,"2025-01-21","IDVIM-694","d15ef245979750e7dec249f2755de6bfa00e04bd"]
[]
[{"$f":"EOMONTH(TODAY(), 0)","v":"2025-01-31"}]
[]
[]
[]
[]
[]
[]
[]
[null,null,null,null,"5,3"]
[null,null,null,null,5.3]

{"sheet":"output","index":1,"n_rows":14,"n_cols":12,"rows_kept":14,"cut":false,"hidden":true,"merged":[[0,6,0,9]]}
[null,null,null,null,null,null,"Max Base Exposure over input time",null,null,null,{"$f":"MAX(K4:K10000)","v":348000},{"$f":"Input_Cur","v":"GBP"}]
[]
["bd_0","DCP","Market","Currency","d_i","Flag Payment Day","Flag Reset and ECC Business Day","BaseValues \ndistributed","BaseLimit","BaseExposure\nin Market Currency","BaseExposure\nin Collateral Currency"]
["2025-01-09","ABCEX",null,null,null,null,null,null,null,null,348000]
["2025-01-09","ABCEX","EPEX_AUCTION_EUR","EUR","2025-01-09",1,1,null,null,208000,208000]
["2025-01-09","ABCEX","EPEX_AUCTION_EUR","EUR","2025-01-10",1,1,52000,52000]
["2025-01-09","ABCEX","EPEX_AUCTION_EUR","EUR","2025-01-11",0,0,0,52000]
["2025-01-09","ABCEX","EPEX_AUCTION_EUR","EUR","2025-01-12",0,0,0,52000]
["2025-01-09","ABCEX","EPEX_AUCTION_EUR","EUR","2025-01-13",1,1,52000,52000]
["2025-01-09","ABCEX","EPEX_CONTINUOUS_EUR","EUR","2025-01-09",1,1,null,null,140000,140000]
["2025-01-09","ABCEX","EPEX_CONTINUOUS_EUR","EUR","2025-01-10",1,1,50000,50000]
["2025-01-09","ABCEX","EPEX_CONTINUOUS_EUR","EUR","2025-01-11",0,0,20000,90000]
["2025-01-09","ABCEX","EPEX_CONTINUOUS_EUR","EUR","2025-01-12",0,0,20000,90000]
["2025-01-09","ABCEX","EPEX_CONTINUOUS_EUR","EUR","2025-01-13",1,1,50000,90000]

{"sheet":"TemplatePDF","index":2,"n_rows":137,"n_cols":7,"rows_kept":137,"cut":false,"hidden":true,"merged":[[132,2,132,5],[133,2,133,5],[134,2,134,5],[136,1,140,6],[126,2,126,5],[127,2,127,5],[128,2,128,5],[129,2,129,5],[130,2,130,5],[131,2,131,5],[125,2,125,5],[113,2,113,5],[114,2,114,5],[115,2,115,5],[116,2,116,5],[117,2,117,5],[118,2,118,5],[105,2,105,5],[119,2,119,5],[120,2,120,5],[121,2,121,5],[124,2,124,5],[106,2,106,5],[107,2,107,5],[108,2,108,5],[111,2,111,5],[112,2,112,5],[100,2,100,5],[101,2,101,5],[102,2,102,5],[103,2,103,5],[104,2,104,5],[99,2,99,5],[78,2,78,5],[79,2,79,5],[80,2,80,5],[81,2,81,5],[82,2,82,5],[83,2,83,5],[70,2,70,5],[84,2,84,5],[85,2,85,5],[86,2,86,5],[98,2,98,5],[71,2,71,5],[72,2,72,5],[73,2,73,5],[76,2,76,5],[77,2,77,5],[65,2,65,5],[66,2,66,5],[67,2,67,5],[68,2,68,5],[69,2,69,5],[64,2,64,5],[52,2,52,5],[53,2,53,5],[54,2,54,5],[55,2,55,5],[56,2,56,5],[57,2,57,5],[40,2,40,5],[58,2,58,5],[59,2,59,5],[60,2,60,5],[63,2,63,5],[41,2,41,5],[42,2,42,5],[43,2,43,5],[50,2,50,5],[51,2,51,5],[35,2,35,5],[36,2,36,5],[37,2,37,5],[38,2,38,5],[39,2,39,5],[34,2,34,5],[22,2,22,5],[23,2,23,5],[24,2,24,5],[25,2,25,5],[26,2,26,5],[27,2,27,5],[14,1,14,2],[28,2,28,5],[29,2,29,5],[30,2,30,5],[33,2,33,5],[15,1,15,2],[16,1,16,2],[17,1,17,2],[20,2,20,5],[21,2,21,5],[18,1,18,6],[9,1,9,2],[10,1,10,2],[11,1,11,2],[12,1,12,2],[13,1,13,2]]}
[null,"DCP Simulation"]
[]
[null,"DCP:","ABCEX",null,"Trading date:","09.01.2025"]
[null,"Calendar:","T2 - Target2"]
[]
[null,"Collateral:",1000000,null,"Open fin. Risk:",0]
[null,"Coll.Currency:","GBP",null,"Resolved fin. Risk:",0]
[null,"Exchange Rate: ",1063]
[]
[null,"Limit Definition",null,"Currency","Business Day-Base\nlimit (optional*)","Non Business Day-Base\nlimit (optional*)","Collateral\nDistribution\nkey in %**"]
[null,"EPEX_AUCTION_EUR",null,"EUR","52000","0","50"]
[null,"EPEX_CONTINUOUS_EUR",null,"EUR","50000","20000","50"]
[]
[]
[]
[]
[]
[]
[null,"To obtain these member preferences, please send us an O09 form\nand transfer the information from this sheet into the form"]
[null,"Market: EPEX_AUCTION_EUR"]
[null,"16:00 CET","Trading limit",null,null,null,"52000,00 €"]
[null,null,"Available Collateral",null,null,null,"1000000,00 £"]
[null,null,"BaseExposure",null,null,null,"327375,35 £"]
[null,null,"Open Risk",null,null,null,"0,00 £"]
[null,null,"Available Excess Collateral",null,null,null,"672624,65 £"]
[null,null,"x market distribution",null,null,null,"50,00 %"]
[null,null,"x limit reset days",null,null,null,"1,00 d"]
[null,null,"Dynamic Limit",null,null,null,"357500,00 €"]
[null,null,"+ Base limit",null,null,null,"52000,00 €"]
[null,"18:00 CET","Trading limit",null,null,null,"409500,00 €"]
[null,"09:00 CET (t+1)","Trading limit",null,null,null,"409500,00 €"]
[]
[null,"Market: EPEX_CONTINUOUS_EUR"]
[null,"16:00 CET","Trading limit",null,null,null,"50000,00 €"]
[null,null,"Available Collateral",null,null,null,"1000000,00 £"]
[null,null,"BaseExposure",null,null,null,"327375,35 £"]
[null,null,"Open Risk",null,null,null,"0,00 £"]
[null,null,"Available Excess Collateral",null,null,null,"672624,65 £"]
[null,null,"x market distribution",null,null,null,"50,00 %"]
[null,null,"x limit reset days",null,null,null,"1,00 d"]
[null,null,"Dynamic Limit",null,null,null,"357500,00 €"]
[null,null,"+ Base limit",null,null,null,"50000,00 €"]
[null,"18:00 CET","Trading limit",null,null,null,"407500,00 €"]
[null,"09:00 CET (t+1)","Trading limit",null,null,null,"407500,00 €"]
[]
[]
[]
[null,"DCP Simulation"]
[]
[]
[null,"16:00 CET","Trading limit"]
[null,null,"Available Collateral"]
[null,null,"BaseExposure"]
[null,null,"Open Risk"]
[null,null,"Available Excess Collateral"]
[null,null,"x market distribution"]
[null,null,"x limit reset days"]
[null,null,"Dynamic Limit"]
[null,null,"+ Base limit"]
[null,"18:00 CET","Trading limit"]
[null,"Market: EPEX_AUCTION_GBP","Trading limit"]
[]
[]
[null,"16:00 CET","Trading limit"]
[null,null,"Available Collateral"]
[null,null,"BaseExposure"]
[null,null,"Open Risk"]
[null,null,"Available Excess Collateral"]
[null,null,"x market distribution"]
[null,null,"x limit reset days"]
[null,null,"Dynamic Limit"]
[null,null,"+ Base limit"]
[null,"18:00 CET","Trading limit"]
[null,"09:00 CET (t+1)","Trading limit"]
[]
[]
[null,"16:00 CET","Trading limit"]
[null,null,"Available Collateral"]
[null,null,"BaseExposure"]
[null,null,"Open Risk"]
[null,null,"Available Excess Collateral"]
[null,null,"x market distribution"]
[null,null,"x limit reset days"]
[null,null,"Dynamic Limit"]
[null,null,"+ Base limit"]
[null,"18:00 CET","Trading limit"]
[null,"09:00 CET (t+1)","Trading limit"]
[]
[]
[]
[]
[]
[]
[]
[]
[null,"DCP Simulation"]
[]
[]
[null,"16:00 CET","Trading limit"]
[null,null,"Available Collateral"]
[null,null,"BaseExposure"]
[null,null,"Open Risk"]
[null,null,"Available Excess Collateral"]
[null,null,"x market distribution"]
[null,null,"x limit reset days"]
[null,null,"Dynamic Limit"]
[null,null,"+ Base limit"]
[null,"18:00 CET","Trading limit"]
[null,"09:00 CET (t+1)","Trading limit"]
[]
[]
[null,"16:00 CET","Trading limit"]
[null,null,"Available Collateral"]
[null,null,"BaseExposure"]
[null,null,"Open Risk"]
[null,null,"Available Excess Collateral"]
[null,null,"x market distribution"]
[null,null,"x limit reset days"]
[null,null,"Dynamic Limit"]
[null,null,"+ Base limit"]
[null,"18:00 CET","Trading limit"]
[null,"09:00 CET (t+1)","Trading limit"]
[]
[]
[null,"16:00 CET","Trading limit"]
[null,null,"Available Collateral"]
[null,null,"BaseExposure"]
[null,null,"Open Risk"]
[null,null,"Available Excess Collateral"]
[null,null,"x market distribution"]
[null,null,"x limit reset days"]
[null,null,"Dynamic Limit"]
[null,null,"+ Base limit"]
[null,"18:00 CET","Trading limit"]
[null,"09:00 CET (t+1)","Trading limit"]
[]
[null,"EEX provides this tool free of charge. No contractual obligations arise from this. The results are not legally binding and serve a purely informatory purpose. You may use this tool at your own risk. The implementability, usability, functionality of the tool and correctness as well as accuracy of the resulting data cannot be guaranteed. Past performance may not be indicative of future results. If you decide to use this tool, you recognize and agree that neither EEX nor any group member of the EEX Group will accept liability for the results generated by this tool and/or the usage thereof. You must not forward this tool to any third party."]

{"sheet":"PDF","index":3,"n_rows":48,"n_cols":7,"rows_kept":48,"cut":false,"hidden":true,"merged":[[21,2,21,5],[9,1,9,2],[10,1,10,2],[11,1,11,2],[12,1,12,6],[20,2,20,5],[35,2,35,5],[22,2,22,5],[23,2,23,5],[24,2,24,5],[25,2,25,5],[26,2,26,5],[27,2,27,5],[28,2,28,5],[29,2,29,5],[30,2,30,5],[33,2,33,5],[34,2,34,5],[42,2,42,5],[43,2,43,5],[47,1,50,6],[36,2,36,5],[37,2,37,5],[38,2,38,5],[39,2,39,5],[40,2,40,5],[41,2,41,5]]}
[null,"DCP Simulation"]
[]
[null,"DCP:","ABCEX",null,"Trading date:","09.01.2025"]
[null,"Calendar:","T2 - Target2"]
[]
[null,"Collateral:",1000000,null,"Open fin. Risk:",0]
[null,"Coll.Currency:","GBP",null,"Resolved fin. Risk:",0]
[null,"Exchange Rate: ",1063]
[]
[null,"Limit Definition",null,"Currency","Business Day-Base\nlimit (optional*)","Non Business Day-Base\nlimit (optional*)","Collateral\nDistribution\nkey in %**"]
[null,"EPEX_AUCTION_EUR",null,"EUR","52000","0","50"]
[null,"EPEX_CONTINUOUS_EUR",null,"EUR","50000","20000","50"]
[null,"To obtain these member preferences, please send us an O09 form\nand transfer the information from this sheet into the form"]
[]
[]
[]
[]
[]
[]
[null,"Market: EPEX_AUCTION_EUR"]
[null,"16:00 CET","Trading limit",null,null,null,"52000,00 €"]
[null,null,"Available Collateral",null,null,null,"1000000,00 £"]
[null,null,"BaseExposure",null,null,null,"327375,35 £"]
[null,null,"Open Risk",null,null,null,"0,00 £"]
[null,null,"Available Excess Collateral",null,null,null,"672624,65 £"]
[null,null,"x market distribution",null,null,null,"50,00 %"]
[null,null,"x limit reset days",null,null,null,"1,00 d"]
[null,null,"Dynamic Limit",null,null,null,"357500,00 €"]
[null,null,"+ Base limit",null,null,null,"52000,00 €"]
[null,"18:00 CET","Trading limit",null,null,null,"409500,00 €"]
[null,"09:00 CET (t+1)","Trading limit",null,null,null,"409500,00 €"]
[]
[null,"Market: EPEX_CONTINUOUS_EUR"]
[null,"16:00 CET","Trading limit",null,null,null,"50000,00 €"]
[null,null,"Available Collateral",null,null,null,"1000000,00 £"]
[null,null,"BaseExposure",null,null,null,"327375,35 £"]
[null,null,"Open Risk",null,null,null,"0,00 £"]
[null,null,"Available Excess Collateral",null,null,null,"672624,65 £"]
[null,null,"x market distribution",null,null,null,"50,00 %"]
[null,null,"x limit reset days",null,null,null,"1,00 d"]
[null,null,"Dynamic Limit",null,null,null,"357500,00 €"]
[null,null,"+ Base limit",null,null,null,"50000,00 €"]
[null,"18:00 CET","Trading limit",null,null,null,"407500,00 €"]
[null,"09:00 CET (t+1)","Trading limit",null,null,null,"407500,00 €"]
[]
[]
[]
[null,"EEX provides this tool free of charge. No contractual obligations arise from this. The results are not legally binding and serve a purely informatory purpose. You may use this tool at your own risk. The implementability, usability, functionality of the tool and correctness as well as accuracy of the resulting data cannot be guaranteed. Past performance may not be indicative of future results. If you decide to use this tool, you recognize and agree that neither EEX nor any group member of the EEX Group will accept liability for the results generated by this tool and/or the usage thereof. You must not forward this tool to any third party."]

{"sheet":"DCP Simulator","index":4,"n_rows":9,"n_cols":4,"rows_kept":9,"cut":false,"hidden":false,"merged":[]}
[]
[]
[]
[]
[]
[]
[]
[]
[null,null,null,"DCP Client tool"]

{"sheet":"DataBackup","index":5,"n_rows":29,"n_cols":14,"rows_kept":29,"cut":false,"hidden":true,"merged":[[13,10,16,10],[13,11,16,11],[13,12,15,13]]}
[]
[]
["Flag","MARKET = Limit Definition","LimitReset on each ?","numBDforExposure\n to + ?","Auction Flag","currency","BD calendar","separate TD calendar",null,null,null,null,null,"DCP"]
[null,"EPEX_CONTINUOUS_GBP","business day",3,0,"GBP","ECC-GBP",0,null,null,null,null,null,"ABCEX"]
[null,"EPEX_CONTINUOUS_EUR","business day",2,0,"EUR","ECC",0]
[null,"EPEX_CPCTY_EUR","day",2,1,"EUR","ECC",1,null,null,"COLLATERAL","In which currency (EUR or GBP) will the collateral be provided?"]
[null,"EEX_GOFR_EUR","day",2,1,"EUR","ECC",1]
[null,"EEX_NEHS_EUR","day",2,1,"EUR","ECC",1,null,null,null,null,null,"COLLATERAL Currency"]
[null,"EPEX_GOEU_EUR","day",2,1,"EUR","ECC",1,null,null,null,null,null,"EUR"]
[null,"EPEX_AUCTION_EUR","day",2,0,"EUR","ECC",0,null,null,null,null,"Exchange Rate GBP/EUR",0.94073377234242717]
[null,"EPEX_AUCTION_GBP","day",3,0,"GBP","ECC-GBP",0,null,null,null,null,"invers zu D9:",1063]
[null,"SEMOPX_AUCTION_EUR","day",3,0,"EUR","ECC",0,null,null,"CLIENT PREFERENCES"]
[null,"SEMOPX_AUCTION_GBP","day",2,0,"GBP","ECC-GBP",0]
[null,"HUPX_AUCTION_EUR","day",2,0,"EUR","ECC",0,null,null,"MARKET",null,"Define the base Limit amount necessary for each calendar day in the markets on business days and non-business days here:"]
[null,"HUPX_CONTINUOUS_EUR","business day",2,0,"EUR","ECC",0]
[null,"BSP_AUCTION_EUR","Day",2,0,"EUR","ECC",0]
[null,"BSP_SEEPX_CONT_EUR","business day",2,0,"EUR","ECC",0,null,null,null,null,"BIZ DAY - ABSOLUTE","NON BIZ DAY - ABSOLUTE"]
[null,null,null,null,null,null,null,null,null,null,"HUPX_AUCTION_EUR","EUR",20,5]
[null,null,null,null,null,null,null,null,null,null,"EPEX_AUCTION_EUR","EUR",1,5]
[null,null,null,null,null,null,null,null,null,null,"EPEX_CONTINUOUS_EUR","EUR",5,5]
[null,null,null,null,null,null,null,null,null,null,"HUPX_CONTINUOUS_EUR","EUR",3,5]
[]
[]
[]
[]
[null,null,null,null,null,null,null,null,null,null,"INPUT DATES"]
[]
[null,null,null,null,null,null,null,null,null,null,null,null,"From","Until"]
[null,null,null,null,null,null,null,null,null,null,"Output Baselimits …",null,"2024-09-02","2024-09-02"]

{"sheet":"markets","index":6,"n_rows":19,"n_cols":8,"rows_kept":19,"cut":false,"hidden":true,"merged":[]}
[]
[null,null,null,{"$f":"MAX(($D$4:$D$22)*($A$4:$A$22))","v":2}]
["Flag","MARKET = Limit Definition","LimitReset on each ?","numBDforExposure to + ?","Auction Flag","currency","BD calendar","separate TD calendar"]
[0,"EPEX_CONTINUOUS_GBP","business day",3,0,"GBP","ECC-GBP",0]
[0,"BSP_AUCTION_EUR","day",2,0,"EUR","ECC",0]
[0,"BSP_SEEPX_CONT_EUR","business day",2,0,"EUR","ECC",0]
[0,"EEX_GOFR_POWER_EUR","day",2,1,"EUR","ECC",1]
[0,"EEX_NEHS_EUR","day",2,1,"EUR","ECC",1]
[1,"EPEX_AUCTION_EUR","day",2,0,"EUR","ECC",0]
[0,"EPEX_AUCTION_GBP","day",3,0,"GBP","ECC-GBP",0]
[1,"EPEX_CONTINUOUS_EUR","business day",2,0,"EUR","ECC",0]
[0,"EPEX_CPCTY_EUR","day",2,1,"EUR","ECC",1]
[0,"EPEX_GOEU_EUR","day",2,1,"EUR","ECC",1]
[0,"HUPX_AUCTION_EUR","day",2,0,"EUR","ECC",0]
[0,"HUPX_CONTINUOUS_EUR","business day",2,0,"EUR","ECC",0]
[0,"SEMOPX_AUCTION_EUR","day",2,0,"EUR","ECC",0]
[0,"SEMOPX_AUCTION_GBP","day",2,0,"GBP","ECC-GBP",0]
[0,"EEX_GOFR_GAS_EUR","day",2,1,"EUR","ECC",1]
[0]

{"sheet":"Languages","index":7,"n_rows":217,"n_cols":8,"rows_kept":217,"cut":false,"hidden":true,"merged":[]}
["MSO-Name","MSO-Code","Description Deutsch","Description Deutsch","Description Français","Description English","Descrizione Tedesco","Descripción Español"]
["msoLanguageIDAfrikaans",1078,"Afrikaans","Afrikaans","Afrikaans","Afrikaans","Afrikaans","Afrikaans"]
["msoLanguageIDArabic",1025,"Arabisch","Arabisch","Arabe","Arabic (Libyan)","Arabo (libico)","Árabe (libio)"]
["msoLanguageIDArabicLibya",4097,"Arabisch (Libyen)","Arabisch (Libyen)","Arabe (Libye)","Arabic (Libya)","Arabo (Libia)","Árabe (Libia)"]
["msoLanguageIDArabicEgypt",3073,"Arabisch Ägypten","Arabisch Ägypten","Arabe égyptien","Arabic Egypt","Arabo Egitto","Árabe de Egipto"]
["msoLanguageIDArabicBahrain",15361,"Arabisch Bahrain","Arabisch Bahrain","arabe bahreïnien","Arabic Bahrain","Arabo Bahrein","Árabe bahreiní"]
["msoLanguageIDArabicIraq",2049,"Arabisch irakisch","Arabisch irakisch","Arabe irakien","Arabic Iraqi","Arabo iracheno","Árabe iraquí"]
["msoLanguageIDArabicJordan",11265,"Arabisch Jordan","Arabisch Jordan","arabe Jordanie","Arabic Jordan","Arabo Giordania","Árabe Jordania"]
["msoLanguageIDArabicQatar",16385,"Arabisch Katar","Arabisch Katar","Arabe du Qatar","Arabic Qatar","Arabo Qatar","Árabe Qatar"]
["msoLanguageIDArabicKuwait",13313,"Arabisch Kuwait","Arabisch Kuwait","Arabe Koweït","Arabic Kuwait","Arabo Kuwait","Árabe Kuwait"]
["msoLanguageIDArabicLebanon",12289,"Arabisch Libanon","Arabisch Libanon","Arabe Libanais","Arabic Lebanon","Arabo Libano","Árabe Líbano"]
["msoLanguageIDArabicMorocco",6145,"Arabisch Marokko","Arabisch Marokko","Arabe marocain","Arabic Morocco","Arabo Marocco","Árabe Marruecos"]
["msoLanguageIDArabicOman",8193,"Arabisch Oman","Arabisch Oman","Arabe Oman","Arabic Oman","Arabo Oman","Árabe Omán"]
["msoLanguageIDArabicSyria",10241,"Arabisch Syrien","Arabisch Syrien","Arabe Syrien","Arabic Syria","Arabo Siria","Árabe Siria"]
["msoLanguageIDArabicTunisia",7169,"Arabisch Tunesien","Arabisch Tunesien","Arabe Tunisie","Arabic Tunisia","Arabo Tunisia","Árabe Túnez"]
["msoLanguageIDArabicUAE",14337,"Arabisch VAE","Arabisch VAE","Arabe EAU","Arabic UAE","Arabo Emirati Arabi Uniti","Árabe EAU"]
["msoLanguageIDAzeriCyrillic",2092,"Aserbaidschanisch Kyrillisch","Aserbaidschanisch Kyrillisch","Azerbaïdjanais Cyrillique","Azerbaijani Cyrillic","Azerbaijani cirillico","Azerbaiyano cirílico"]
["msoLanguageIDBasque",1069,"Baskisch (Baskisch)","Baskisch (Baskisch)","Basque (basque)","Basque (Basque)","Basco (basco)","Vasco"]
["msoLanguageIDBengali",1093,"Bengali","Bengali","Bengali","Bengali","Bengalese","Bengalí"]
["msoLanguageIDBosnian",4122,"Bosnisch","Bosnisch","Bosniaque","Bosnian","Bosniaco","Bosnio"]
["msoLanguageIDBosnianBosniaHerzegovinaLatin",5146,"Bosnisch Bosnien-Herzegowina Lateinisch","Bosnisch Bosnien-Herzegowina Lateinisch","Bosniaque Bosnie-Herzégovine Latin","Bosnian Bosnia-Herzegovina Latin","Bosniaco Bosnia-Erzegovina Latino","Bosnio Bosnia-Herzegovina Latín"]
["msoLanguageIDCherokee",1116,"Cherokee","Cherokee","Cherokee","Cherokee","Cherokee","Cheroqui"]
["msoLanguageIDChineseMacaoSAR",5124,"Chinesisch Macao SAR","Chinesisch Macao SAR","Chinois Macao SAR","Chinese Macao SAR","Cinese Macao SAR","Chino RAE de Macao"]
["msoLanguageIDChineseSingapore",4100,"Chinesisch Singapur","Chinesisch Singapur","Chinois de Singapour","Chinese Singapore","Cinese Singapore","Chino Singapur"]
["msoLanguageIDFrenchCotedIvoire",12300,"Elfenbeinsprachiges Französisch","Elfenbeinsprachiges Französisch","Français ivoirien","Ivory French","Avorio Francese","Marfil Francés"]
["msoLanguageIDSpanishDominicanRepublic",7178,"Spanisch Dominikanischen Republik","Spanisch Dominikanischen Republik","Espagnol République dominicaine","Spanish Dominican Republic","Spagnolo Repubblica Dominicana","Español República Dominicana"]
["msoLanguageIDGermanLiechtenstein",5127,"Deutsch Liechtenstein","Deutsch Liechtenstein","Allemand Liechtenstein","German Liechtenstein","Tedesco Liechtenstein","Alemán Liechtenstein"]
["msoLanguageIDGermanLuxembourg",4103,"Deutsch Luxemburg","Deutsch Luxemburg","Allemand Luxembourg","German Luxembourg","Tedesco Lussemburgo","Alemán Luxemburgo"]
["msoLanguageIDGermanösterreich",3079,"Deutsch Österreich","Deutsch Österreich","Allemand Autriche","German Austria","Tedesco Austria","Alemán Austria"]
["msoLanguageIDSwissGerman",2055,"Deutsch schweizisch","Deutsch schweizisch","Allemand suisse","German Swiss","Tedesco Svizzera","Alemán Suiza"]
["msoLanguageIDAlbanian",1052,"Albanisch","Albanisch","Albanais","Albanian","Albanese","Albanés"]
["msoLanguageIDAmharic",1118,"Amharisch","Amharisch","Amharique","Amharic","Amarico","Amárico"]
["msoLanguageIDArabicYemen",9217,"Arabische Jemen","Arabische Jemen","Arabe Yémen","Arabic Yemen","Arabo Yemen","Árabe yemení"]
["msoLanguageIDArabicAlgeria",5121,"Arabische Algerien","Arabische Algerien","Arabe algérien","Arabic Algerian","Arabo algerino","Árabe argelino"]
["msoLanguageIDArmenian",1067,"Armenisch","Armenisch","Arménien","Armenian","armeno","Armenio"]
["msoLanguageIDAzeriLatin",1068,"Aserbaidschanisches Latein","Aserbaidschanisches Latein","Latin azerbaïdjanais","Azerbaijani Latin","Latino dell'Azerbaigian","Azerbaiyano Latín"]
["msoLanguageIDAssamese",1101,"Assamesisch","Assamesisch","Assamais","Assamese","Assamese","Asamés"]
["msoLanguageIDTigrignaEthiopic",1139,"Ethiopian Tigrigna","Äthiopische Tigrigna","Éthiopien Tigrigna","Ethiopian Tigrigna","Etiope Tigrigna","Tigriña etíope"]
["msoLanguageIDByelorussian",1059,"Belarusian","Belarussisch","Biélorusse","Belarusian","Bielorusso","Bielorruso"]
["msoLanguageIDBelgianFrench",2060,"Belgian French","Belgisches Französisch","Français belge","Belgian French","Francese belga","Belga Francés"]
["msoLanguageIDBelgianDutch",2067,"Belgian Dutch","Belgisches Niederländisch","Néerlandais belge","Belgian Dutch","Belga olandese","Neerlandés belga"]
["msoLanguageIDBurmese",1109,"Burmese","Birmanisch","Birman","Burmese","Birmano","Birmano"]
["msoLanguageIDBosnianBosniaHerzegovinaCyrillic",8218,"Bosnian Cyrillic Bosnia-Herzegovina","Bosnisch-kyrillisches Bosnien-Herzegowina","Bosniaque cyrillique Bosnie-Herzégovine","Bosnian Cyrillic Bosnia-Herzegovina","Bosniaco cirillico Bosnia-Erzegovina","Bosnio cirílico Bosnia-Herzegovina"]
["msoLanguageIDBulgarian",1026,"Bulgarian","Bulgarisch","Bulgare","Bulgarian","bulgaro","Búlgaro"]
["msoLanguageIDChineseHongKongSAR",3076,"Chinese Hong Kong SAR","Chinesische hongkong SAR","Chinois hongkongais SAR","Chinese Hong Kong SAR","Cinese Hong Kong SAR","Chino Hong Kong RAE"]
["msoLanguageIDDanish",1030,"Danish","Dänisch","Danois","Danish","danese","Danés"]
["msoLanguageIDGerman",1031,"German","Deutsch","Allemand","German","Tedesco","Alemán"]
["msoLanguageIDFaeroese",1080,"Faroese","färöische","féroïen","Faroese","Faroese","Feroés"]
["msoLanguageIDFarsi",1065,"Farsi","Farsi","Farsi","Farsi","Farsi","Farsi"]
["msoLanguageIDFinnish",1035,"Finnish","Finnisch","finnois","Finnish","finlandese","Finlandés"]
["msoLanguageIDGalician",1110,"Galician","Galizisch","Galicien","Galician","Galiziano","Gallego"]
["msoLanguageIDMixed",-2,"Mixed","Gemischt","Mixte","Mixed","Misto","Mixto"]
["msoLanguageIDGreek",1032,"Greek","Griechisch","Grec","Greek","greco","Griego"]
["msoLanguageIDHawaiian",1141,"Hawaiian","Hawaiianisch","Hawaïen","Hawaiian","hawaiano","Hawaiano"]
["msoLanguageIDIgbo",1136,"Igbo","Igbo","Igbo","Igbo","Igbo","Igbo"]
["msoLanguageIDItalian",1040,"Italian","Italienisch","Italien","Italian","Italiano","Italiano"]
["msoLanguageIDJapanese",1041,"Japanese","Japanisch","Japonais","Japanese","Giapponese","Japonés"]
["msoLanguageIDKazakh",1087,"Kazakh","Kasachisch","Kazakh","Kazakh","Kazako","Kazajo"]
["msoLanguageIDCatalan",1027,"Catalan","Katalanisch","Catalan","Catalan","catalano","Catalán"]
["msoLanguageIDKhmer",1107,"Khmer","Khmer","Khmer","Khmer","Khmer","Jemer"]
["msoLanguageIDKyrgyz",1088,"Kyrgyz","Kirgisisch","Kirghize","Kyrgyz","kirghiso","Kirguís"]
["msoLanguageIDCroatian",1050,"Croatian","Kroatisch","Croate","Croatian","croato","Croata"]
["msoLanguageIDSerbianCyrillic",3098,"Cyrillic Serbian","Kyrillisches Serbisch","Serbe cyrillique","Cyrillic Serbian","Serbo cirillico","Serbio cirílico"]
["msoLanguageIDSerbianBosniaHerzegovinaCyrillic",7194,"Cyrillic Serbian Bosnia And Herzegovina","Kyrillisches Serbisch Bosnien Und Herzegowina","Serbe cyrillique Bosnie Et Herzégovine","Cyrillic Serbian Bosnia And Herzegovina","Serbo cirillico Bosnia-Erzegovina","Serbio cirílico Bosnia y Herzegovina"]
["msoLanguageIDLatin",1142,"Latin","Latein","Latin","Latin","Latino","Latín"]
["msoLanguageIDSerbianBosniaHerzegovinaLatin",6170,"Latin Serbian Bosnia And Herzegovina","Latein Serbisch Bosnien-Herzegowina","Latin Serbe Bosnie-Herzégovine","Latin Serbian Bosnia And Herzegovina","Latino Serbo Bosnia-Erzegovina","Serbio latino Bosnia y Herzegovina"]
["msoLanguageIDLithuanian",1063,"Lithuanian","Litauisch","Lituanien","Lithuanian","Lituano","Lituano"]
["msoLanguageIDMalayBruneiDarussalam",2110,"Malay Brunei Darussalam","Malaiisch Brunei Darussalam","Malais Brunéi Darussalam","Malay Brunei Darussalam","Malese Brunei Darussalam","Malayo Brunei Darussalam"]
["msoLanguageIDMalaysian",1086,"Malay","Malaysisch","Malais","Malay","Malese","Malayo"]
["msoLanguageIDMacedonianFYROM",1071,"Macedonian","Mazedonisch","Macédonien","Macedonian","Macedone","Macedonio"]
["msoLanguageIDSpanishModernSort",3082,"Modern sorting language Spanish","Moderne Sortiersprache Spanisch","Langue de tri moderne Espagnol","Modern sorting language Spanish","Lingua di smistamento moderna Spagnolo","Lengua de clasificación moderna Español"]
["msoLanguageIDNepali",1121,"Nepalese","Nepalesisch","Népalais","Nepalese","Nepalese","Nepalés"]
["msoLanguageIDDutch",1043,"Dutch Bokmol","Niederländisch","Néerlandais","Dutch Bokmol","Olandese Bokmol","Neerlandés Bokmol"]
["msoLanguageIDNorwegianBokmol",1044,"Norwegian Bokmol","Norwegisches Bokmol","Norvégien bokmol","Norwegian Bokmol","Norvegese Bokmol","Noruego Bokmol"]
["msoLanguageIDNorwegianNynorsk",2068,"Norwegian Nynorsk","Norwegisches Nynorsk","Norvégien nynorsk","Norwegian Nynorsk","Norvegese nynorsk","Nynorsk noruego"]
["msoLanguageIDPashto",1123,"Pashto","Paschto","Pashto","Pashto","Pashto","Pastún"]
["msoLanguageIDFilipino",1124,"Filipino","Philippinisch","Philippin","Filipino","filippino","Filipino"]
["msoLanguageIDPolish",1045,"Polish","Polnisch","Polonais","Polish","polacco","Polaco"]
["msoLanguageIDRhaetoRomanic",1047,"Rhaeto-Romanic","Rätoromanische","Rhéto-roman","Rhaeto-Romanic","Retoromancio","Retorrománico"]
["msoLanguageIDRomanian",1048,"Romanian","Rumänisch","Roumain","Romanian","rumeno","Rumano"]
["msoLanguageIDRussian",1049,"Russian","Russisch","Russe","Russian","russo","Ruso"]
["msoLanguageIDSamiLappish",1083,"Sami Lappish","Samisch-lappisch","Sami lapon","Sami Lappish","Sami lappone","Lapón sami"]
["msoLanguageIDSanskrit",1103,"Sanskrit","Sanskrit","Sanskrit","Sanskrit","Sanscrito","Sánscrito"]
["msoLanguageIDSwedish",1053,"Swedish","Schwedisch","Suédois","Swedish","Svedese","Sueco"]
["msoLanguageIDSwissFrench",4108,"Swiss French","Schweizer Französisch","Français suisse","Swiss French","Svizzero francese","Francés suizo"]
["msoLanguageIDSwissItalian",2064,"Swiss Italian","Schweizer Italienisch","Italien suisse","Swiss Italian","Svizzero italiano","Suizo Italiano"]
["msoLanguageIDSerbianLatin",2074,"Serbian Latin","Serbisches Latein","Latin serbe","Serbian Latin","Serbo latino","Serbio Latín"]
["msoLanguageIDSinhalese",1115,"Sinhala","Sinhalesisch","Cinghalais","Sinhala","Sinhala","Cingalés"]
["msoLanguageIDSlovenian",1060,"Slovenian","Slowenisch","Slovène","Slovenian","sloveno","Esloveno"]
["msoLanguageIDSutu",1072,"Sutu","Sutu","Sutu","Sutu","Sutu","Sutu"]
["msoLanguageIDSyriac",1114,"Syriac","Syrisch","Syriaque","Syriac","Siriaco","Siríaco"]
["msoLanguageIDTajik",1064,"Tajik","Tadschikisch","Tadjik","Tajik","tagico","Tayiko"]
["msoLanguageIDTamil",1097,"Tamil","Tamilisch","Tamoul","Tamil","Tamil","Tamil"]
["msoLanguageIDTatar",1092,"Tatar","Tatarisch","Tatar","Tatar","Tatar","Tártaro"]
["msoLanguageIDTibetan",1105,"Tibetan","Tibetisch","Tibétain","Tibetan","tibetano","Tibetano"]
["msoLanguageIDTraditionalChinese",1028,"Traditional Chinese","Traditionelles Chinesisch","Chinois traditionnel","Traditional Chinese","Cinese tradizionale","Chino tradicional"]
["msoLanguageIDCzech",1029,"Czech","Tschechisch","Tchèque","Czech","ceco","Checo"]
["msoLanguageIDTurkish",1055,"Turkish","Türkisch","Turc","Turkish","turco","Turco"]
["msoLanguageIDTurkmen",1090,"Turkmen","Turkmenisch","Turkmène","Turkmen","turkmeno","Turcomano"]
["msoLanguageIDUkrainian",1058,"Ukrainian","Ukrainisch","Ukrainien","Ukrainian","Ucraino","Ucraniano"]
["msoLanguageIDHungarian",1038,"Hungarian","Ungarisch","Hongrois","Hungarian","ungherese","Húngaro"]
["msoLanguageIDUzbekLatin",1091,"Uzbek Latin","Usbekische Latein","Latin ouzbek","Uzbek Latin","Uzbeko Latino","Uzbeko Latín"]
["msoLanguageIDSimplifiedChinese",2052,"Simplified Chinese","Vereinfachtes Chinesisch","Chinois simplifié","Simplified Chinese","Cinese semplificato","Chino simplificado"]
["msoLanguageIDVietnamese",1066,"Vietnamese","Vietnamesisch","Vietnamien","Vietnamese","vietnamita","Vietnamita"]
["msoLanguageIDWelsh",1106,"Welsh","Walisisch","Gallois","Welsh","Gallese","Galés"]
["msoLanguageIDDivehi",1125,"Divehi","Divehi","Divehi","Divehi","Divehi","Divehi"]
["msoLanguageIDEdo",1126,"Edo","Edo","Edo","Edo","Edo","Edo"]
["msoLanguageIDEnglishCanadian",4105,"English (Canada)","Englisch (Kanada)","Anglais (Canada)","English (Canada)","Inglese (Canada)","Inglés (Canadá)"]
["msoLanguageIDEnglishUS",1033,"English (USA)","Englisch (USA)","Anglais (USA)","English (USA)","Inglese (USA)","Inglés (EE.UU.)"]
["msoLanguageIDEnglishAUS",3081,"English AUS","Englisch AUS","Anglais AUS","English AUS","Inglese AUS","Inglés AUS"]
["msoLanguageIDEnglishBelize",10249,"English Belize","Englisch Belize","Anglais Belize","English Belize","Inglese Belize","Inglés Belize"]
["msoLanguageIDEnglishIndonesia",14345,"English Indonesia","Englisch Indonesien","Anglais Indonésie","English Indonesia","Inglese Indonesia","Inglés Indonesia"]
["msoLanguageIDEnglishIreland",6153,"English Ireland","Englisch Irland","Anglais Irlande","English Ireland","Inglese Irlanda","Inglés Irlanda"]
["msoLanguageIDEnglishJamaica",8201,"English Jamaica","Englisch Jamaika","Anglais Jamaïque","English Jamaica","Inglese Giamaica","Inglés Jamaica"]
["msoLanguageIDEnglishCaribbean",9225,"English Caribbean","Englisch Karibik","Anglais Caraïbes","English Caribbean","Inglese Caraibi","Inglés Caribe"]
["msoLanguageIDEnglishNewZealand",5129,"English NewZealand","Englisch NewZealand","Anglais NewZealand","English NewZealand","Inglese NewZealand","Inglés Nueva Zelanda"]
["msoLanguageIDEnglishPhilippinen",13321,"English Philippines","Englisch Philippinen","Anglais Philippines","English Philippines","Inglese Filippine","Inglés Filipinas"]
["msoLanguageIDEnglishZimbabwe",12297,"English Zimbabwe","Englisch Simbabwe","Anglais Zimbabwe","English Zimbabwe","Inglese Zimbabwe","Inglés Zimbabwe"]
["msoLanguageIDEnglishSouthAfrica",7177,"English South Africa","Englisch Südafrika","Anglais Afrique du Sud","English South Africa","Inglese Sudafrica","Inglés Sudáfrica"]
["msoLanguageIDEnglishTrinidadTobago",11273,"English Trinidad Tobago","Englisch Trinidad Tobago","Anglais Trinidad Tobago","English Trinidad Tobago","Inglese Trinidad Tobago","Inglés Trinidad Tobago"]
["msoLanguageIDEnglishUK",2057,"English UK","Englisch UK","Anglais UK","English UK","Inglese Regno Unito","Inglés Reino Unido"]
["msoLanguageIDEstonian",1061,"Estonian","Estnisch","Estonien","Estonian","Estone","Estonio"]
["msoLanguageIDFrench",1036,"French (Canada)","Französisch","Français","French (Canada)","Francese (Canada)","Francés (Canadá)"]
["msoLanguageIDFrenchCanadian",3084,"French (Canada)","Französisch (Kanada)","Français (Canada)","French (Canada)","Francese (Canada)","Francés (Canadá)"]
["msoLanguageIDFrenchHaiti",15372,"French Haiti","Französisch Haiti","Français Haïti","French Haiti","Francese Haiti","Francés Haití"]
["msoLanguageIDFrenchCameroon",11276,"French Cameroon","Französisch Kamerun","Français Cameroun","French Cameroon","Francese Camerun","Francés Camerún"]
["msoLanguageIDFrenchCongoDRC",9228,"French Congo DRC","Französisch Kongo DRK","Français Congo RDC","French Congo DRC","Francese Congo RDC","Francés Congo RDC"]
["msoLanguageIDFrenchLuxembourg",5132,"French Luxembourg","Französisch Luxemburg","Français Luxembourg","French Luxembourg","Francese Lussemburgo","Francés de Luxemburgo"]
["msoLanguageIDFrenchMali",13324,"French Mali","Französisch Mali","Français Mali","French Mali","Francese Mali","Francés Malí"]
["msoLanguageIDFrenchMorocco",14348,"French Morocco","Französisch Marokko","Français Maroc","French Morocco","Marocco francese","Francés Marruecos"]
["msoLanguageIDFrenchMonaco",6156,"French Monaco","Französisch Monaco","Français Monaco","French Monaco","Monaco francese","Francés Mónaco"]
["msoLanguageIDFrenchReunion",8204,"French Reunion","Französisch Reunion","Français Réunion","French Reunion","Riunione Francese","Francés Reunión"]
["msoLanguageIDFrenchSenegal",10252,"French Senegal","Französisch Senegal","Français Sénégal","French Senegal","Senegal francese","Francés Senegal"]
["msoLanguageIDFrenchWestIndies",7180,"French West Indies","Französisch Westindien","Français Indes occidentales","French West Indies","Antille francesi","Antillas Francesas"]
["msoLanguageIDFrisianNiederlande",1122,"Frisian Netherlands","Friesisch Niederlande","Frison Pays-Bas","Frisian Netherlands","Frisone Paesi Bassi","Frisón neerlandés"]
["msoLanguageIDFulfulde",1127,"Fulfulde","Fulfulde","Fulfulde","Fulfulde","Fulfulde","Fulfulde"]
["msoLanguageIDGeorgian",1079,"Georgian","Georgisch","Géorgien","Georgian","Georgiano","Georgiano"]
["msoLanguageIDGuarani",1140,"Guarani","Guarani","Guarani","Guarani","Guarani","Guaraní"]
["msoLanguageIDGujarati",1095,"Gujarati","Gujarati","Gujarati","Gujarati","Gujarati","Gujarati"]
["msoLanguageIDHausa",1128,"Hausa","Hausa","Hausa","Hausa","Hausa","Hausa"]
["msoLanguageIDHebrew",1037,"Hebrew","Hebräisch","Hébreu","Hebrew","Ebraico","Hebreo"]
["msoLanguageIDHindi",1081,"Hindi","Hindi","Hindi","Hindi","Hindi","Hindi"]
["msoLanguageIDIbibio",1129,"Ibibio","Ibibio","Ibibio","Ibibio","Ibibio","Ibibio"]
["msoLanguageIDIndonesian",1057,"Indonesian","Indonesisch","Indonésien","Indonesian","Indonesiano","Indonesio"]
["msoLanguageIDInuktitut",1117,"Inuktitut","Inuktitut","Inuktitut","Inuktitut","Inuktitut","Inuktitut"]
["msoLanguageIDGaelicIreland",2108,"Irish (Ireland)","Irisch (Irland)","Irlandais (Irlande)","Irish (Ireland)","Irlandese (Irlanda)","Irlandés (Irlanda)"]
["msoLanguageIDIcelandic",1039,"Icelandic","Isländisch","Islandais","Icelandic","islandese","Islandés"]
["msoLanguageIDYiddish",1085,"Yiddish","Jiddisch","Yiddish","Yiddish","Yiddish","Yiddish"]
["msoLanguageIDKannada",1099,"Kannada","Kannada","Kannada","Kannada","Kannada","Canarés"]
["msoLanguageIDKanuri",1137,"Kanuri","Kanuri","Kanuri","Kanuri","Kanuri","Kanuri"]
["msoLanguageIDKashmiri",1120,"Kashmiri","Kaschmir","Cachemire","Kashmiri","Kashmiri","Cachemir"]
["msoLanguageIDKashmiriDevanagari",2144,"Kashmiri Devanagari","Kashmiri Devanagari","Kashmiri Devanagari","Kashmiri Devanagari","Kashmiri Devanagari","Devanagari cachemir"]
["msoLanguageIDNoProofing",1024,"No correction aid","Keine Korrekturhilfe","Pas d'aide à la correction","No correction aid","Nessun aiuto alla correzione","Ninguna ayuda a la corrección"]
["msoLanguageIDNone",0,"None given","Keine angegeben","Aucune indiquée","None given","Nessuno","Ninguna"]
["msoLanguageIDKirghiz",1088,"Kyrgyz","Kirgisisch","Kirghiz","Kyrgyz","Kirghizistan","Kirguís"]
["msoLanguageIDKonkani",1111,"Konkani","Konkani","Konkani","Konkani","Konkani","Konkani"]
["msoLanguageIDKorean",1042,"Korean","Koreanisch","Coréen","Korean","Coreano","Coreano"]
["msoLanguageIDLao",1108,"Lao","Lao","Lao","Lao","Lao","Lao"]
["msoLanguageIDLatvian",1062,"Latvian","Lettisch","Letton","Latvian","Lettone","Letón"]
["msoLanguageIDMalayalam",1100,"Malayalam","Malayalam","Malayalam","Malayalam","Malayalam","Malayalam"]
["msoLanguageIDMaltese",1082,"Maltese","Maltesisch","Maltais","Maltese","Maltese","Maltés"]
["msoLanguageIDManipuri",1112,"Manipuri","Manipuri","Manipuri","Manipuri","Manipuri","Manipuri"]
["msoLanguageIDMaori",1153,"Maori","Maori","Maori","Maori","Maori","Maorí"]
["msoLanguageIDMarathi",1102,"Marathi","Marathi","Marathi","Marathi","Marathi","Marathi"]
["msoLanguageIDMongolian",1104,"Mongolian","Mongolisch","Mongol","Mongolian","Mongolo","Mongol"]
["msoLanguageIDOriya",1096,"Odia","Odia","Odia","Odia","Odia","Odia"]
["msoLanguageIDOromo",1138,"Oromo","Oromo","Oromo","Oromo","Oromo","Oromo"]
["msoLanguageIDPortuguese",2070,"Portuguese","Portugiesisch","Portugais","Portuguese","Portoghese","Portugués"]
["msoLanguageIDBrazilianPortuguese",1046,"Portuguese (Brazil)","Portugiesisch (Brasilien)","Portugais (Brésil)","Portuguese (Brazil)","Portoghese (Brasile)","Portugués (Brasil)"]
["msoLanguageIDPunjabi",1094,"Punjabi","Punjabi","Punjabi","Punjabi","Punjabi","Punjabi"]
["msoLanguageIDQuechuaBolivia",1131,"Quechua Bolivia","Quechua Bolivien","Quechua Bolivie","Quechua Bolivia","Quechua Bolivia","Quechua Bolivia"]
["msoLanguageIDQuechuaEcuador",2155,"Quechua Ecuador","Quechua Ecuador","Quechua Équateur","Quechua Ecuador","Quechua Ecuador","Quechua Ecuador"]
["msoLanguageIDQuechuaPeru",3179,"Quechua Peru","Quechua Peru","Quechua Pérou","Quechua Peru","Quechua Perù","Quechua Perú"]
["msoLanguageIDRomanianMoldova",2072,"Romanian Moldavian","Rumänisch Moldawien","Roumain Moldavie","Romanian Moldavian","Rumeno Moldavo","Rumano Moldavo"]
["msoLanguageIDRussianMoldova",2073,"Russian Moldavian","Russisch Moldawien","russe moldave","Russian Moldavian","Russo moldavo","Ruso Moldavo"]
["msoLanguageIDGaelicScotland",1084,"Scottish Gaelic","Schottisch-Gälisch","Gaélique écossais","Scottish Gaelic","Gaelico scozzese","Gaélico escocés"]
["msoLanguageIDSwedishFinland",2077,"Swedish Finland","Schwedisch Finnland","Suédois Finlande","Swedish Finland","Svedese Finlandia","Sueco Finlandia"]
["msoLanguageIDSepedi",1132,"Sepedi","Sepedi","Sepedi","Sepedi","Sepedi","Sepedi"]
["msoLanguageIDSesotho",1072,"Sesotho","Sesotho","Sesotho","Sesotho","Sesotho","Sesotho"]
["msoLanguageIDSindhi",1113,"Sindhi","Sindhi","Sindhi","Sindhi","Sindhi","Sindhi"]
["msoLanguageIDSindhiPakistan",2137,"Sindhi Pakistan","Sindhi Pakistan","Sindhi Pakistan","Sindhi Pakistan","Sindhi Pakistan","Sindhi Pakistán"]
["msoLanguageIDSlovak",1051,"Slovakian","Slowakisch","Slovaque","Slovakian","Slovacco","Eslovaco"]
["msoLanguageIDSomali",1143,"Somali","Somali","Somali","Somali","Somalo","Somalí"]
["msoLanguageIDSorbisch",1070,"Sorbian","Sorbische","Sorabe","Sorbian","Sorbo","Sorabo"]
["msoLanguageIDSpanish",1034,"Spanish (Mexican)","Spanisch","Espagnol","Spanish (Mexican)","Spagnolo (messicano)","Español de México"]
["msoLanguageIDMexicanSpanish",2058,"Spanish (Mexican)","Spanisch (Mexikanisch)","Espagnol (mexicain)","Spanish (Mexican)","Spagnolo (messicano)","Español de México"]
["msoLanguageIDSpanishArgentina",11274,"Spanish Argentina","Spanisch Argentinien","Espagnol Argentine","Spanish Argentina","Spagnolo Argentina","Español de Argentina"]
["msoLanguageIDSpanishBolivia",16394,"Spanish Bolivia","Spanisch Bolivien","Espagnol Bolivie","Spanish Bolivia","Spagnolo Bolivia","Español Bolivia"]
["msoLanguageIDSpanishChile",13322,"Spanish Chile","Spanisch Chile","Espagnol Chili","Spanish Chile","Spagnolo Cile","Español Chile"]
["msoLanguageIDSpanishCostaRica",5130,"Spanish Costa Rica","Spanisch Costa Rica","Espagnol Costa Rica","Spanish Costa Rica","Spagnolo Costa Rica","Español Costa Rica"]
["msoLanguageIDSpanishEcuador",12298,"Spanish Ecuador","Spanisch Ecuador","Espagnol Équateur","Spanish Ecuador","Ecuador spagnolo","Español Ecuador"]
["msoLanguageIDSpanishElSalvador",17418,"Spanish El Salvador","Spanisch El Salvador","Espagnol El Salvador","Spanish El Salvador","El Salvador spagnolo","Español El Salvador"]
["msoLanguageIDSpanishGuatemala",4106,"Spanish Guatemala","Spanisch Guatemala","Espagnol Guatemala","Spanish Guatemala","Guatemala spagnolo","Español Guatemala"]
["msoLanguageIDSpanishHonduras",18442,"Spanish Honduras","Spanisch Honduras","Espagnol Honduras","Spanish Honduras","Honduras spagnolo","Español Honduras"]
["msoLanguageIDSpanishColombia",9226,"Spanish Colombia","Spanisch Kolumbien","Espagnol Colombie","Spanish Colombia","Colombia spagnola","Español Colombia"]
["msoLanguageIDSpanishNicaragua",19466,"Spanish Nicaragua","Spanisch Nicaragua","Espagnol Nicaragua","Spanish Nicaragua","Nicaragua spagnolo","Español Nicaragua"]
["msoLanguageIDSpanishPanama",6154,"Spanish Panama","Spanisch Panama","Espagnol Panama","Spanish Panama","Panama spagnolo","Español Panamá"]
["msoLanguageIDSpanishParaguay",15370,"Spanish Paraguay","Spanisch Paraguay","Espagnol Paraguay","Spanish Paraguay","Spagnolo Paraguay","Español Paraguay"]
["msoLanguageIDSpanishPeru",10250,"Spanish Peru","Spanisch Peru","Espagnol Pérou","Spanish Peru","Spagnolo Perù","Español Perú"]
["msoLanguageIDSpanishPuertoRico",20490,"Spanish Puerto Rico","Spanisch Puerto Rico","Espagnol Porto Rico","Spanish Puerto Rico","Spagnolo Porto Rico","Español Puerto Rico"]
["msoLanguageIDSpanishUruguay",14346,"Spanish Uruguay","Spanisch Uruguay","Espagnol Uruguay","Spanish Uruguay","Spagnolo Uruguay","Español Uruguay"]
["msoLanguageIDSpanishVenezuela",8202,"Spanish Venezuela","Spanisch Venezuela","Espagnol Venezuela","Spanish Venezuela","Spagnolo Venezuela","Español Venezuela"]
["msoLanguageIDSwahili",1089,"Swahili","Swahili","Swahili","Swahili","Swahili","Swahili"]
["msoLanguageIDTamazight",1119,"Tamazight","Tamazight","Tamazight","Tamazight","Tamazight","Tamazight"]
["msoLanguageIDTamazightLatin",2143,"Tamazight Latin","Tamazight Latein","Tamazight latin","Tamazight Latin","Tamazight latino","Tamazight latino"]
["msoLanguageIDTelugu",1098,"Telugu","Telugu","Télougou","Telugu","Telugu","Telugu"]
["msoLanguageIDThai",1054,"Thai","Thai","Thaïlandais","Thai","Thai","Tailandés"]
["msoLanguageIDTigrignaEritrea",2163,"Tigrigna Eritrea","Tigrigna Eritrea","Tigrigna Érythrée","Tigrigna Eritrea","Tigrigna Eritrea","Tigriña Eritrea"]
["msoLanguageIDTsonga",1073,"Tsonga","Tsonga","Tsonga","Tsonga","Tsonga","Tsonga"]
["msoLanguageIDTswana",1074,"Tswana","Tswana","Tswana","Tswana","Tswana","Tswana"]
["msoLanguageIDUrdu",1056,"Urdu","Urdu","Urdu","Urdu","Urdu","Urdu"]
["msoLanguageIDUzbekCyrillic",2115,"Uzbek Cyrillic","Usbekisch Kyrillisch","Ouzbek Cyrillique","Uzbek Cyrillic","Uzbeko cirillico","Uzbeko cirílico"]
["msoLanguageIDVenda",1075,"Venda","Venda","Venda","Venda","Venda","Venda"]
["msoLanguageIDXhosa",1076,"Xhosa","Xhosa","Xhosa","Xhosa","Xhosa","Xhosa"]
["msoLanguageIDYi",1144,"Yi","Yi","Yi","Yi","Yi","Yi"]
["msoLanguageIDYoruba",1130,"Yoruba","Yoruba","Yoruba","Yoruba","Yoruba","Yoruba"]
["msoLanguageIDZulu",1077,"Zulu","Zulu","Zoulou","Zulu","Zulu","Zulú"]

{"sheet":"calendar","index":8,"n_rows":1027,"n_cols":34,"rows_kept":1027,"cut":false,"hidden":true,"merged":[]}
["ECC",null,null,"bank holidays",null,"Markets with separate trading day calendars",null,null,null,"Year: "]
["2023-01-02",null,"UsedFlag",{"$f":"IF(ISERROR(VLOOKUP(D3,start!$B$17:$B$24,1,FALSE)),0,1)","v":0},null,{"$f":"MAX($G$2:$I$2)","v":210},{"$f":"COUNT(G$4:G$302)","v":15},{"$f":"COUNT(H$4:H$308)","v":24},{"$f":"COUNT(I$4:I$310)","v":210},{"$f":"COUNT(J$4:J$312)","v":17}]
["2023-01-03",null,null,"GBP",null,{"$f":"COUNTA(G3:Z3)","v":5},"EPEX_CPCTY_EUR","EEX_GOFR_POWER_EUR","EEX_NEHS_EUR","EPEX_GOEU_EUR","EEX_GOFR_GAS_EUR"]
["2023-01-04",null,{"$f":"COUNT($D$4:$D$88)","v":25},"1900-01-01",null," ","2022-03-24","2020-05-18","2022-10-04","2022-09-28","2024-12-04",null,null,null,null,null,null,null,null,null,null,null,null,null,null,null,null,null,null,null,null,null,null,"x"]
["2023-01-05",null,null,"2022-04-15",null,null,"2022-04-28","2021-04-21","2022-10-06","2022-10-26","2025-03-04",null,null,null,null,null,null,null,null,null,null,null,null,null,null,null,null,null,null,null,null,null,null,"x"]
["2023-01-06",null,null,"2022-04-18",null,null,"2022-06-23","2021-12-13","2022-10-11","2022-11-23","2025-06-04",null,null,null,null,null,null,null,null,null,null,null,null,null,null,null,null,null,null,null,null,null,null,"x"]
["2023-01-09",null,null,"2022-05-02",null,null,"2022-09-08","2022-01-19","2022-10-13","2022-12-21","2025-09-03",null,null,null,null,null,null,null,null,null,null,null,null,null,null,null,null,null,null,null,null,null,null,"x"]
["2023-01-10",null,null,"2022-06-02",null,null,"2023-06-22","2022-02-16","2022-10-18","2023-01-25","2025-12-03",null,null,null,null,null,null,null,null,null,null,null,null,null,null,null,null,null,null,null,null,null,null,"x"]
["2023-01-11",null,null,"2022-06-03",null,null,"2023-07-19","2022-03-01","2022-10-20","2023-02-22","2025-12-23",null,null,null,null,null,null,null,null,null,null,null,null,null,null,null,null,null,null,null,null,null,null,"x"]
["2023-01-12",null,null,"2022-08-29",null,null,"2023-09-21","2022-03-03","2022-10-25","2023-03-22",null,null,null,null,null,null,null,null,null,null,null,null,null,null,null,null,null,null,null,null,null,null,null,"x"]
["2023-01-13",null,null,"2022-12-26",null,null,"2023-10-25","2022-03-16","2022-10-27","2023-04-27",null,null,null,null,null,null,null,null,null,null,null,null,null,null,null,null,null,null,null,null,null,null,null,"x"]
["2023-01-16",null,null,"2022-12-27",null,null,"2023-10-26","2022-07-20","2022-11-01","2023-05-24"]
["2023-01-17",null,null,"2023-01-02",null,null,"2023-10-27","2022-08-17","2022-11-03","2023-06-28"]
["2023-01-18",null,null,"2023-04-07",null,null,"2023-12-07","2022-08-23","2022-11-08","2023-07-26"]
["2023-01-19",null,null,"2023-04-10",null,null,"2024-07-19","2022-10-19","2022-11-10","2023-12-20"]
["2023-01-20",null,null,"2023-05-08",null,null,"2024-07-28","2022-12-14","2022-11-15","2024-05-22"]
["2023-01-23",null,null,"2023-05-29",null,null,"2024-10-24","2023-01-18","2022-11-17","2024-09-27"]
["2023-01-24",null,null,"2023-08-28",null,null,"2024-12-05","2023-06-15","2022-11-22","2024-10-23"]
["2023-01-25",null,null,"2023-12-25",null,null,null,"2023-09-21","2022-11-24","2024-11-27"]
["2023-01-26",null,null,"2023-12-26",null,null,null,"2023-10-18","2022-11-29","2024-12-18"]
["2023-01-27",null,null,"2024-01-01",null,null,null,"2023-11-15","2022-12-01"]
["2023-01-30",null,null,"2024-03-29",null,null,null,"2024-03-15","2022-12-06"]
["2023-01-31",null,null,"2024-04-01",null,null,null,"2024-04-20","2022-12-08"]
["2023-02-01",null,null,"2024-05-06",null,null,null,"2024-06-21","2021-12-14"]
["2023-02-02",null,null,"2024-05-27",null,null,null,"2024-10-16","2021-12-16"]
["2023-02-03",null,null,"2024-08-26",null,null,null,"2024-11-20","2023-01-10"]
["2023-02-06",null,null,"2024-12-25",null,null,null,"2024-12-11","2023-01-12"]
["2023-02-07",null,null,"2024-12-26",null,null,null,null,"2023-01-17"]
["2023-02-08",null,null,null,null,null,null,null,"2023-01-19"]
["2023-02-09",null,null,null,null,null,null,null,"2023-01-24"]
["2023-02-10",null,null,null,null,null,null,null,"2023-01-26"]
["2023-02-13",null,null,null,null,null,null,null,"2023-01-31"]
["2023-02-14",null,null,null,null,null,null,null,"2023-02-02"]
["2023-02-15",null,null,null,null,null,null,null,"2023-02-07"]
["2023-02-16",null,null,null,null,null,null,null,"2023-02-09"]
["2023-02-17",null,null,null,null,null,null,null,"2023-02-14"]
["2023-02-20",null,null,null,null,null,null,null,"2023-02-16"]
["2023-02-21",null,null,null,null,null,null,null,"2023-02-21"]
["2023-02-22",null,null,null,null,null,null,null,"2023-02-23"]
["2023-02-23",null,null,null,null,null,null,null,"2023-02-28"]
["2023-02-24",null,null,null,null,null,null,null,"2023-03-02"]
["2023-02-27",null,null,null,null,null,null,null,"2023-03-07"]
["2023-02-28",null,null,null,null,null,null,null,"2023-03-09"]
["2023-03-01",null,null,null,null,null,null,null,"2023-03-14"]
["2023-03-02",null,null,null,null,null,null,null,"2023-03-16"]
["2023-03-03",null,null,null,null,null,null,null,"2023-03-21"]
["2023-03-06",null,null,null,null,null,null,null,"2023-03-23"]
["2023-03-07",null,null,null,null,null,null,null,"2023-03-28"]
["2023-03-08",null,null,null,null,null,null,null,"2023-03-30"]
["2023-03-09",null,null,null,null,null,null,null,"2023-04-04"]
["2023-03-10",null,null,null,null,null,null,null,"2023-04-06"]
["2023-03-13",null,null,null,null,null,null,null,"2023-04-11"]
["2023-03-14",null,null,null,null,null,null,null,"2023-04-13"]
["2023-03-15",null,null,null,null,null,null,null,"2023-04-18"]
["2023-03-16",null,null,null,null,null,null,null,"2023-04-20"]
["2023-03-17",null,null,null,null,null,null,null,"2023-04-25"]
["2023-03-20",null,null,null,null,null,null,null,"2023-04-27"]
["2023-03-21",null,null,null,null,null,null,null,"2023-05-02"]
["2023-03-22",null,null,null,null,null,null,null,"2023-05-04"]
["2023-03-23",null,null,null,null,null,null,null,"2023-05-09"]
["2023-03-24",null,null,null,null,null,null,null,"2023-05-11"]
["2023-03-27",null,null,null,null,null,null,null,"2023-05-16"]
["2023-03-28",null,null,null,null,null,null,null,"2023-05-23"]
["2023-03-29",null,null,null,null,null,null,null,"2023-05-25"]
["2023-03-30",null,null,null,null,null,null,null,"2023-05-30"]
["2023-03-31",null,null,null,null,null,null,null,"2023-06-01"]
["2023-04-03",null,null,null,null,null,null,null,"2023-06-06"]
["2023-04-04",null,null,null,null,null,null,null,"2023-06-08"]
["2023-04-05",null,null,null,null,null,null,null,"2023-06-13"]
["2023-04-06",null,null,null,null,null,null,null,"2023-06-15"]
["2023-04-11",null,null,null,null,null,null,null,"2023-06-20"]
["2023-04-12",null,null,null,null,null,null,null,"2023-06-22"]
["2023-04-13",null,null,null,null,null,null,null,"2023-06-27"]
["2023-04-14",null,null,null,null,null,null,null,"2023-06-29"]
["2023-04-17",null,null,null,null,null,null,null,"2023-07-04"]
["2023-04-18",null,null,null,null,null,null,null,"2023-07-06"]
["2023-04-19",null,null,null,null,null,null,null,"2023-07-11"]
["2023-04-20",null,null,null,null,null,null,null,"2023-07-13"]
["2023-04-21",null,null,null,null,null,null,null,"2023-07-18"]
["2023-04-24",null,null,null,null,null,null,null,"2023-07-20"]
["2023-04-25",null,null,null,null,null,null,null,"2023-07-25"]
["2023-04-26",null,null,null,null,null,null,null,"2023-07-27"]
["2023-04-27",null,null,null,null,null,null,null,"2023-08-01"]
["2023-04-28",null,null,null,null,null,null,null,"2023-08-03"]
["2023-05-01",null,null,null,null,null,null,null,"2023-08-08"]
["2023-05-02",null,null,null,null,null,null,null,"2023-08-10"]
["2023-05-03",null,null,null,null,null,null,null,"2023-08-15"]
["2023-05-04",null,null,null,null,null,null,null,"2023-08-17"]
["2023-05-05",null,null,null,null,null,null,null,"2023-08-22"]
["2023-05-08",null,null,null,null,null,null,null,"2023-08-24"]
["2023-05-09",null,null,null,null,null,null,null,"2023-08-29"]
["2023-05-10",null,null,null,null,null,null,null,"2023-08-31"]
["2023-05-11",null,null,null,null,null,null,null,"2023-09-05"]
["2023-05-12",null,null,null,null,null,null,null,"2023-09-07"]
["2023-05-15",null,null,null,null,null,null,null,"2023-09-12"]
["2023-05-16",null,null,null,null,null,null,null,"2023-09-14"]
["2023-05-17",null,null,null,null,null,null,null,"2023-09-19"]
["2023-05-18",null,null,null,null,null,null,null,"2023-09-21"]
["2023-05-19",null,null,null,null,null,null,null,"2023-09-26"]
["2023-05-22",null,null,null,null,null,null,null,"2023-09-28"]
["2023-05-23",null,null,null,null,null,null,null,"2023-10-05"]
["2023-05-24",null,null,null,null,null,null,null,"2023-10-10"]
["2023-05-25",null,null,null,null,null,null,null,"2023-10-12"]
["2023-05-26",null,null,null,null,null,null,null,"2023-10-17"]
["2023-05-29",null,null,null,null,null,null,null,"2023-10-19"]
["2023-05-30",null,null,null,null,null,null,null,"2023-10-24"]
["2023-05-31",null,null,null,null,null,null,null,"2023-10-26"]
["2023-06-01",null,null,null,null,null,null,null,"2023-10-31"]
["2023-06-02",null,null,null,null,null,null,null,"2023-11-02"]
["2023-06-05",null,null,null,null,null,null,null,"2023-11-07"]
["2023-06-06",null,null,null,null,null,null,null,"2023-11-09"]
["2023-06-07",null,null,null,null,null,null,null,"2023-11-14"]
["2023-06-08",null,null,null,null,null,null,null,"2023-11-16"]
["2023-06-09",null,null,null,null,null,null,null,"2023-11-21"]
["2023-06-12",null,null,null,null,null,null,null,"2023-11-23"]
["2023-06-13",null,null,null,null,null,null,null,"2023-11-28"]
["2023-06-14",null,null,null,null,null,null,null,"2023-11-30"]
["2023-06-15",null,null,null,null,null,null,null,"2023-12-05"]
["2023-06-16",null,null,null,null,null,null,null,"2023-12-07"]
["2023-06-19",null,null,null,null,null,null,null,"2024-01-09"]
["2023-06-20",null,null,null,null,null,null,null,"2024-01-11"]
["2023-06-21",null,null,null,null,null,null,null,"2024-01-16"]
["2023-06-22",null,null,null,null,null,null,null,"2024-01-18"]
["2023-06-23",null,null,null,null,null,null,null,"2024-01-23"]
["2023-06-26",null,null,null,null,null,null,null,"2024-01-25"]
["2023-06-27",null,null,null,null,null,null,null,"2024-01-30"]
["2023-06-28",null,null,null,null,null,null,null,"2024-02-01"]
["2023-06-29",null,null,null,null,null,null,null,"2024-02-06"]
["2023-06-30",null,null,null,null,null,null,null,"2024-02-08"]
["2023-07-03",null,null,null,null,null,null,null,"2024-02-13"]
["2023-07-04",null,null,null,null,null,null,null,"2024-02-15"]
["2023-07-05",null,null,null,null,null,null,null,"2024-02-20"]
["2023-07-06",null,null,null,null,null,null,null,"2024-02-22"]
["2023-07-07",null,null,null,null,null,null,null,"2024-02-27"]
["2023-07-10",null,null,null,null,null,null,null,"2024-02-29"]
["2023-07-11",null,null,null,null,null,null,null,"2024-03-05"]
["2023-07-12",null,null,null,null,null,null,null,"2024-03-07"]
["2023-07-13",null,null,null,null,null,null,null,"2024-03-12"]
["2023-07-14",null,null,null,null,null,null,null,"2024-03-14"]
["2023-07-17",null,null,null,null,null,null,null,"2024-03-19"]
["2023-07-18",null,null,null,null,null,null,null,"2024-03-21"]
["2023-07-19",null,null,null,null,null,null,null,"2024-03-26"]
["2023-07-20",null,null,null,null,null,null,null,"2024-03-28"]
["2023-07-21",null,null,null,null,null,null,null,"2024-04-02"]
["2023-07-24",null,null,null,null,null,null,null,"2024-04-04"]
["2023-07-25",null,null,null,null,null,null,null,"2024-04-09"]
["2023-07-26",null,null,null,null,null,null,null,"2024-04-11"]
["2023-07-27",null,null,null,null,null,null,null,"2024-04-16"]
["2023-07-28",null,null,null,null,null,null,null,"2024-04-18"]
["2023-07-31",null,null,null,null,null,null,null,"2024-04-23"]
["2023-08-01",null,null,null,null,null,null,null,"2024-04-25"]
["2023-08-02",null,null,null,null,null,null,null,"2024-04-30"]
["2023-08-03",null,null,null,null,null,null,null,"2024-05-02"]
["2023-08-04",null,null,null,null,null,null,null,"2024-05-07"]
["2023-08-07",null,null,null,null,null,null,null,"2024-05-14"]
["2023-08-08",null,null,null,null,null,null,null,"2024-05-16"]
["2023-08-09",null,null,null,null,null,null,null,"2024-05-21"]
["2023-08-10",null,null,null,null,null,null,null,"2024-05-23"]
["2023-08-11",null,null,null,null,null,null,null,"2024-05-28"]
["2023-08-14",null,null,null,null,null,null,null,"2024-05-30"]
["2023-08-15",null,null,null,null,null,null,null,"2024-06-04"]
["2023-08-16",null,null,null,null,null,null,null,"2024-06-06"]
["2023-08-17",null,null,null,null,null,null,null,"2024-06-11"]
["2023-08-18",null,null,null,null,null,null,null,"2024-06-13"]
["2023-08-21",null,null,null,null,null,null,null,"2024-06-18"]
["2023-08-22",null,null,null,null,null,null,null,"2024-06-20"]
["2023-08-23",null,null,null,null,null,null,null,"2024-06-25"]
["2023-08-24",null,null,null,null,null,null,null,"2024-06-27"]
["2023-08-25",null,null,null,null,null,null,null,"2024-07-02"]
["2023-08-28",null,null,null,null,null,null,null,"2024-07-04"]
["2023-08-29",null,null,null,null,null,null,null,"2024-07-09"]
["2023-08-30",null,null,null,null,null,null,null,"2024-07-11"]
["2023-08-31",null,null,null,null,null,null,null,"2024-07-16"]
["2023-09-01",null,null,null,null,null,null,null,"2024-07-18"]
["2023-09-04",null,null,null,null,null,null,null,"2024-07-23"]
["2023-09-05",null,null,null,null,null,null,null,"2024-07-25"]
["2023-09-06",null,null,null,null,null,null,null,"2024-07-30"]
["2023-09-07",null,null,null,null,null,null,null,"2024-08-01"]
["2023-09-08",null,null,null,null,null,null,null,"2024-08-06"]
["2023-09-11",null,null,null,null,null,null,null,"2024-08-08"]
["2023-09-12",null,null,null,null,null,null,null,"2024-08-13"]
["2023-09-13",null,null,null,null,null,null,null,"2024-08-15"]
["2023-09-14",null,null,null,null,null,null,null,"2024-08-20"]
["2023-09-15",null,null,null,null,null,null,null,"2024-08-22"]
["2023-09-18",null,null,null,null,null,null,null,"2024-08-27"]
["2023-09-19",null,null,null,null,null,null,null,"2024-08-29"]
["2023-09-20",null,null,null,null,null,null,null,"2024-09-03"]
["2023-09-21",null,null,null,null,null,null,null,"2024-09-05"]
["2023-09-22",null,null,null,null,null,null,null,"2024-09-10"]
["2023-09-25",null,null,null,null,null,null,null,"2024-09-12"]
["2023-09-26",null,null,null,null,null,null,null,"2024-09-17"]
["2023-09-27",null,null,null,null,null,null,null,"2024-09-19"]
["2023-09-28",null,null,null,null,null,null,null,"2024-09-24"]
["2023-09-29",null,null,null,null,null,null,null,"2024-09-26"]
["2023-10-02",null,null,null,null,null,null,null,"2024-10-01"]
["2023-10-03",null,null,null,null,null,null,null,"2024-10-08"]
["2023-10-04",null,null,null,null,null,null,null,"2024-10-10"]
["2023-10-05",null,null,null,null,null,null,null,"2024-10-15"]
["2023-10-06",null,null,null,null,null,null,null,"2024-10-17"]
["2023-10-09",null,null,null,null,null,null,null,"2024-10-22"]
["2023-10-10",null,null,null,null,null,null,null,"2024-10-24"]
["2023-10-11",null,null,null,null,null,null,null,"2024-10-29"]
["2023-10-12",null,null,null,null,null,null,null,"2024-10-31"]
["2023-10-13",null,null,null,null,null,null,null,"2024-11-05"]
["2023-10-16",null,null,null,null,null,null,null,"2024-11-07"]
["2023-10-17",null,null,null,null,null,null,null,"2024-11-12"]
["2023-10-18",null,null,null,null,null,null,null,"2024-11-14"]
["2023-10-19",null,null,null,null,null,null,null,"2024-11-19"]
["2023-10-20",null,null,null,null,null,null,null,"2024-11-21"]
["2023-10-23",null,null,null,null,null,null,null,"2024-11-26"]
["2023-10-24",null,null,null,null,null,null,null,"2024-11-28"]
["2023-10-25",null,null,null,null,null,null,null,"2024-12-03"]
["2023-10-26",null,null,null,null,null,null,null,"2024-12-05"]
["2023-10-27"]
["2023-10-30"]
["2023-10-31"]
["2023-11-01"]
["2023-11-02"]
["2023-11-03"]
["2023-11-06"]
["2023-11-07"]
["2023-11-08"]
["2023-11-09"]
["2023-11-10"]
["2023-11-13"]
["2023-11-14"]
["2023-11-15"]
["2023-11-16"]
["2023-11-17"]
["2023-11-20"]
["2023-11-21"]
["2023-11-22"]
["2023-11-23"]
["2023-11-24"]
["2023-11-27"]
["2023-11-28"]
["2023-11-29"]
["2023-11-30"]
["2023-12-01"]
["2023-12-04"]
["2023-12-05"]
["2023-12-06"]
["2023-12-07"]
["2023-12-08"]
["2023-12-11"]
["2023-12-12"]
["2023-12-13"]
["2023-12-14"]
["2023-12-15"]
["2023-12-18"]
["2023-12-19"]
["2023-12-20"]
["2023-12-21"]
["2023-12-22"]
["2023-12-27"]
["2023-12-28"]
["2023-12-29"]
["2024-01-02"]
["2024-01-03"]
["2024-01-04"]
["2024-01-05"]
["2024-01-08"]
["2024-01-09"]
["2024-01-10"]
["2024-01-11"]
["2024-01-12"]
["2024-01-15"]
["2024-01-16"]
["2024-01-17"]
["2024-01-18"]
["2024-01-19"]
["2024-01-22"]
["2024-01-23"]
["2024-01-24"]
["2024-01-25"]
["2024-01-26"]
["2024-01-29"]
["2024-01-30"]
["2024-01-31"]
["2024-02-01"]
["2024-02-02"]
["2024-02-05"]
["2024-02-06"]
["2024-02-07"]
["2024-02-08"]
["2024-02-09"]
["2024-02-12"]
["2024-02-13"]
["2024-02-14"]
["2024-02-15"]
["2024-02-16"]
["2024-02-19"]
["2024-02-20"]
["2024-02-21"]
["2024-02-22"]
["2024-02-23"]
["2024-02-26"]
["2024-02-27"]
["2024-02-28"]
["2024-02-29"]
["2024-03-01"]
["2024-03-04"]
["2024-03-05"]
["2024-03-06"]
["2024-03-07"]
["2024-03-08"]
["2024-03-11"]
["2024-03-12"]
["2024-03-13"]
["2024-03-14"]
["2024-03-15"]
["2024-03-18"]
["2024-03-19"]
["2024-03-20"]
["2024-03-21"]
["2024-03-22"]
["2024-03-25"]
["2024-03-26"]
["2024-03-27"]
["2024-03-28"]
["2024-04-02"]
["2024-04-03"]
["2024-04-04"]
["2024-04-05"]
["2024-04-08"]
["2024-04-09"]
["2024-04-10"]
["2024-04-11"]
["2024-04-12"]
["2024-04-15"]
["2024-04-16"]
["2024-04-17"]
["2024-04-18"]
["2024-04-19"]
["2024-04-22"]
["2024-04-23"]
["2024-04-24"]
["2024-04-25"]
["2024-04-26"]
["2024-04-29"]
["2024-04-30"]
["2024-05-01"]
["2024-05-02"]
["2024-05-03"]
["2024-05-06"]
["2024-05-07"]
["2024-05-08"]
["2024-05-09"]
["2024-05-10"]
["2024-05-13"]
["2024-05-14"]
["2024-05-15"]
["2024-05-16"]
["2024-05-17"]
["2024-05-20"]
["2024-05-21"]
["2024-05-22"]
["2024-05-23"]
["2024-05-24"]
["2024-05-27"]
["2024-05-28"]
["2024-05-29"]
["2024-05-30"]
["2024-05-31"]
["2024-06-03"]
["2024-06-04"]
["2024-06-05"]
["2024-06-06"]
["2024-06-07"]
["2024-06-10"]
["2024-06-11"]
["2024-06-12"]
["2024-06-13"]
["2024-06-14"]
["2024-06-17"]
["2024-06-18"]
["2024-06-19"]
["2024-06-20"]
["2024-06-21"]
["2024-06-24"]
["2024-06-25"]
["2024-06-26"]
["2024-06-27"]
["2024-06-28"]
["2024-07-01"]
["2024-07-02"]
["2024-07-03"]
["2024-07-04"]
["2024-07-05"]
["2024-07-08"]
["2024-07-09"]
["2024-07-10"]
["2024-07-11"]
["2024-07-12"]
["2024-07-15"]
["2024-07-16"]
["2024-07-17"]
["2024-07-18"]
["2024-07-19"]
["2024-07-22"]
["2024-07-23"]
["2024-07-24"]
["2024-07-25"]
["2024-07-26"]
["2024-07-29"]
["2024-07-30"]
["2024-07-31"]
["2024-08-01"]
["2024-08-02"]
["2024-08-05"]
["2024-08-06"]
["2024-08-07"]
["2024-08-08"]
["2024-08-09"]
["2024-08-12"]
["2024-08-13"]
["2024-08-14"]
["2024-08-15"]
["2024-08-16"]
["2024-08-19"]
["2024-08-20"]
["2024-08-21"]
["2024-08-22"]
["2024-08-23"]
["2024-08-26"]
["2024-08-27"]
["2024-08-28"]
["2024-08-29"]
["2024-08-30"]
["2024-09-02"]
["2024-09-03"]
["2024-09-04"]
["2024-09-05"]
["2024-09-06"]
["2024-09-09"]
["2024-09-10"]
["2024-09-11"]
["2024-09-12"]
["2024-09-13"]
["2024-09-16"]
["2024-09-17"]
["2024-09-18"]
["2024-09-19"]
["2024-09-20"]
["2024-09-23"]
["2024-09-24"]
["2024-09-25"]
["2024-09-26"]
["2024-09-27"]
["2024-09-30"]
["2024-10-01"]
["2024-10-02"]
["2024-10-03"]
["2024-10-04"]
["2024-10-07"]
["2024-10-08"]
["2024-10-09"]
["2024-10-10"]
["2024-10-11"]
["2024-10-14"]
["2024-10-15"]
["2024-10-16"]
["2024-10-17"]
["2024-10-18"]
["2024-10-21"]
["2024-10-22"]
["2024-10-23"]
["2024-10-24"]
["2024-10-25"]
["2024-10-28"]
["2024-10-29"]
["2024-10-30"]
["2024-10-31"]
["2024-11-01"]
["2024-11-04"]
["2024-11-05"]
["2024-11-06"]
["2024-11-07"]
["2024-11-08"]
["2024-11-11"]
["2024-11-12"]
["2024-11-13"]
["2024-11-14"]
["2024-11-15"]
["2024-11-18"]
["2024-11-19"]
["2024-11-20"]
["2024-11-21"]
["2024-11-22"]
["2024-11-25"]
["2024-11-26"]
["2024-11-27"]
["2024-11-28"]
["2024-11-29"]
["2024-12-02"]
["2024-12-03"]
["2024-12-04"]
["2024-12-05"]
["2024-12-06"]
["2024-12-09"]
["2024-12-10"]
["2024-12-11"]
["2024-12-12"]
["2024-12-13"]
["2024-12-16"]
["2024-12-17"]
["2024-12-18"]
["2024-12-19"]
["2024-12-20"]
["2024-12-23"]
["2024-12-24"]
["2024-12-27"]
["2024-12-30"]
["2024-12-31"]
["2025-01-02"]
["2025-01-03"]
["2025-01-06"]
["2025-01-07"]
["2025-01-08"]
["2025-01-09"]
["2025-01-10"]
["2025-01-13"]
["2025-01-14"]
["2025-01-15"]
["2025-01-16"]
["2025-01-17"]
["2025-01-20"]
["2025-01-21"]
["2025-01-22"]
["2025-01-23"]
["2025-01-24"]
["2025-01-27"]
["2025-01-28"]
["2025-01-29"]
["2025-01-30"]
["2025-01-31"]
["2025-02-03"]
["2025-02-04"]
["2025-02-05"]
["2025-02-06"]
["2025-02-07"]
["2025-02-10"]
["2025-02-11"]
["2025-02-12"]
["2025-02-13"]
["2025-02-14"]
["2025-02-17"]
["2025-02-18"]
["2025-02-19"]
["2025-02-20"]
["2025-02-21"]
["2025-02-24"]
["2025-02-25"]
["2025-02-26"]
["2025-02-27"]
["2025-02-28"]
["2025-03-03"]
["2025-03-04"]
["2025-03-05"]
["2025-03-06"]
["2025-03-07"]
["2025-03-10"]
["2025-03-11"]
["2025-03-12"]
["2025-03-13"]
["2025-03-14"]
["2025-03-17"]
["2025-03-18"]
["2025-03-19"]
["2025-03-20"]
["2025-03-21"]
["2025-03-24"]
["2025-03-25"]
["2025-03-26"]
["2025-03-27"]
["2025-03-28"]
["2025-03-31"]
["2025-04-01"]
["2025-04-02"]
["2025-04-03"]
["2025-04-04"]
["2025-04-07"]
["2025-04-08"]
["2025-04-09"]
["2025-04-10"]
["2025-04-11"]
["2025-04-14"]
["2025-04-15"]
["2025-04-16"]
["2025-04-17"]
["2025-04-22"]
["2025-04-23"]
["2025-04-24"]
["2025-04-25"]
["2025-04-28"]
["2025-04-29"]
["2025-04-30"]
["2025-05-01"]
["2025-05-02"]
["2025-05-05"]
["2025-05-06"]
["2025-05-07"]
["2025-05-08"]
["2025-05-09"]
["2025-05-12"]
["2025-05-13"]
["2025-05-14"]
["2025-05-15"]
["2025-05-16"]
["2025-05-19"]
["2025-05-20"]
["2025-05-21"]
["2025-05-22"]
["2025-05-23"]
["2025-05-26"]
["2025-05-27"]
["2025-05-28"]
["2025-05-29"]
["2025-05-30"]
["2025-06-02"]
["2025-06-03"]
["2025-06-04"]
["2025-06-05"]
["2025-06-06"]
["2025-06-09"]
["2025-06-10"]
["2025-06-11"]
["2025-06-12"]
["2025-06-13"]
["2025-06-16"]
["2025-06-17"]
["2025-06-18"]
["2025-06-19"]
["2025-06-20"]
["2025-06-23"]
["2025-06-24"]
["2025-06-25"]
["2025-06-26"]
["2025-06-27"]
["2025-06-30"]
["2025-07-01"]
["2025-07-02"]
["2025-07-03"]
["2025-07-04"]
["2025-07-07"]
["2025-07-08"]
["2025-07-09"]
["2025-07-10"]
["2025-07-11"]
["2025-07-14"]
["2025-07-15"]
["2025-07-16"]
["2025-07-17"]
["2025-07-18"]
["2025-07-21"]
["2025-07-22"]
["2025-07-23"]
["2025-07-24"]
["2025-07-25"]
["2025-07-28"]
["2025-07-29"]
["2025-07-30"]
["2025-07-31"]
["2025-08-01"]
["2025-08-04"]
["2025-08-05"]
["2025-08-06"]
["2025-08-07"]
["2025-08-08"]
["2025-08-11"]
["2025-08-12"]
["2025-08-13"]
["2025-08-14"]
["2025-08-15"]
["2025-08-18"]
["2025-08-19"]
["2025-08-20"]
["2025-08-21"]
["2025-08-22"]
["2025-08-25"]
["2025-08-26"]
["2025-08-27"]
["2025-08-28"]
["2025-08-29"]
["2025-09-01"]
["2025-09-02"]
["2025-09-03"]
["2025-09-04"]
["2025-09-05"]
["2025-09-08"]
["2025-09-09"]
["2025-09-10"]
["2025-09-11"]
["2025-09-12"]
["2025-09-15"]
["2025-09-16"]
["2025-09-17"]
["2025-09-18"]
["2025-09-19"]
["2025-09-22"]
["2025-09-23"]
["2025-09-24"]
["2025-09-25"]
["2025-09-26"]
["2025-09-29"]
["2025-09-30"]
["2025-10-01"]
["2025-10-02"]
["2025-10-03"]
["2025-10-06"]
["2025-10-07"]
["2025-10-08"]
["2025-10-09"]
["2025-10-10"]
["2025-10-13"]
["2025-10-14"]
["2025-10-15"]
["2025-10-16"]
["2025-10-17"]
["2025-10-20"]
["2025-10-21"]
["2025-10-22"]
["2025-10-23"]
["2025-10-24"]
["2025-10-27"]
["2025-10-28"]
["2025-10-29"]
["2025-10-30"]
["2025-10-31"]
["2025-11-03"]
["2025-11-04"]
["2025-11-05"]
["2025-11-06"]
["2025-11-07"]
["2025-11-10"]
["2025-11-11"]
["2025-11-12"]
["2025-11-13"]
["2025-11-14"]
["2025-11-17"]
["2025-11-18"]
["2025-11-19"]
["2025-11-20"]
["2025-11-21"]
["2025-11-24"]
["2025-11-25"]
["2025-11-26"]
["2025-11-27"]
["2025-11-28"]
["2025-12-01"]
["2025-12-02"]
["2025-12-03"]
["2025-12-04"]
["2025-12-05"]
["2025-12-08"]
["2025-12-09"]
["2025-12-10"]
["2025-12-11"]
["2025-12-12"]
["2025-12-15"]
["2025-12-16"]
["2025-12-17"]
["2025-12-18"]
["2025-12-19"]
["2025-12-22"]
["2025-12-23"]
["2025-12-24"]
["2025-12-29"]
["2025-12-30"]
["2025-12-31"]
["2026-01-02"]
["2026-01-05"]
["2026-01-06"]
["2026-01-07"]
["2026-01-08"]
["2026-01-09"]
["2026-01-12"]
["2026-01-13"]
["2026-01-14"]
["2026-01-15"]
["2026-01-16"]
["2026-01-19"]
["2026-01-20"]
["2026-01-21"]
["2026-01-22"]
["2026-01-23"]
["2026-01-26"]
["2026-01-27"]
["2026-01-28"]
["2026-01-29"]
["2026-01-30"]
["2026-02-02"]
["2026-02-03"]
["2026-02-04"]
["2026-02-05"]
["2026-02-06"]
["2026-02-09"]
["2026-02-10"]
["2026-02-11"]
["2026-02-12"]
["2026-02-13"]
["2026-02-16"]
["2026-02-17"]
["2026-02-18"]
["2026-02-19"]
["2026-02-20"]
["2026-02-23"]
["2026-02-24"]
["2026-02-25"]
["2026-02-26"]
["2026-02-27"]
["2026-03-02"]
["2026-03-03"]
["2026-03-04"]
["2026-03-05"]
["2026-03-06"]
["2026-03-09"]
["2026-03-10"]
["2026-03-11"]
["2026-03-12"]
["2026-03-13"]
["2026-03-16"]
["2026-03-17"]
["2026-03-18"]
["2026-03-19"]
["2026-03-20"]
["2026-03-23"]
["2026-03-24"]
["2026-03-25"]
["2026-03-26"]
["2026-03-27"]
["2026-03-30"]
["2026-03-31"]
["2026-04-01"]
["2026-04-02"]
["2026-04-07"]
["2026-04-08"]
["2026-04-09"]
["2026-04-10"]
["2026-04-13"]
["2026-04-14"]
["2026-04-15"]
["2026-04-16"]
["2026-04-17"]
["2026-04-20"]
["2026-04-21"]
["2026-04-22"]
["2026-04-23"]
["2026-04-24"]
["2026-04-27"]
["2026-04-28"]
["2026-04-29"]
["2026-04-30"]
["2026-05-01"]
["2026-05-04"]
["2026-05-05"]
["2026-05-06"]
["2026-05-07"]
["2026-05-08"]
["2026-05-11"]
["2026-05-12"]
["2026-05-13"]
["2026-05-14"]
["2026-05-15"]
["2026-05-18"]
["2026-05-19"]
["2026-05-20"]
["2026-05-21"]
["2026-05-22"]
["2026-05-25"]
["2026-05-26"]
["2026-05-27"]
["2026-05-28"]
["2026-05-29"]
["2026-06-01"]
["2026-06-02"]
["2026-06-03"]
["2026-06-04"]
["2026-06-05"]
["2026-06-08"]
["2026-06-09"]
["2026-06-10"]
["2026-06-11"]
["2026-06-12"]
["2026-06-15"]
["2026-06-16"]
["2026-06-17"]
["2026-06-18"]
["2026-06-19"]
["2026-06-22"]
["2026-06-23"]
["2026-06-24"]
["2026-06-25"]
["2026-06-26"]
["2026-06-29"]
["2026-06-30"]
["2026-07-01"]
["2026-07-02"]
["2026-07-03"]
["2026-07-06"]
["2026-07-07"]
["2026-07-08"]
["2026-07-09"]
["2026-07-10"]
["2026-07-13"]
["2026-07-14"]
["2026-07-15"]
["2026-07-16"]
["2026-07-17"]
["2026-07-20"]
["2026-07-21"]
["2026-07-22"]
["2026-07-23"]
["2026-07-24"]
["2026-07-27"]
["2026-07-28"]
["2026-07-29"]
["2026-07-30"]
["2026-07-31"]
["2026-08-03"]
["2026-08-04"]
["2026-08-05"]
["2026-08-06"]
["2026-08-07"]
["2026-08-10"]
["2026-08-11"]
["2026-08-12"]
["2026-08-13"]
["2026-08-14"]
["2026-08-17"]
["2026-08-18"]
["2026-08-19"]
["2026-08-20"]
["2026-08-21"]
["2026-08-24"]
["2026-08-25"]
["2026-08-26"]
["2026-08-27"]
["2026-08-28"]
["2026-08-31"]
["2026-09-01"]
["2026-09-02"]
["2026-09-03"]
["2026-09-04"]
["2026-09-07"]
["2026-09-08"]
["2026-09-09"]
["2026-09-10"]
["2026-09-11"]
["2026-09-14"]
["2026-09-15"]
["2026-09-16"]
["2026-09-17"]
["2026-09-18"]
["2026-09-21"]
["2026-09-22"]
["2026-09-23"]
["2026-09-24"]
["2026-09-25"]
["2026-09-28"]
["2026-09-29"]
["2026-09-30"]
["2026-10-01"]
["2026-10-02"]
["2026-10-05"]
["2026-10-06"]
["2026-10-07"]
["2026-10-08"]
["2026-10-09"]
["2026-10-12"]
["2026-10-13"]
["2026-10-14"]
["2026-10-15"]
["2026-10-16"]
["2026-10-19"]
["2026-10-20"]
["2026-10-21"]
["2026-10-22"]
["2026-10-23"]
["2026-10-26"]
["2026-10-27"]
["2026-10-28"]
["2026-10-29"]
["2026-10-30"]
["2026-11-02"]
["2026-11-03"]
["2026-11-04"]
["2026-11-05"]
["2026-11-06"]
["2026-11-09"]
["2026-11-10"]
["2026-11-11"]
["2026-11-12"]
["2026-11-13"]
["2026-11-16"]
["2026-11-17"]
["2026-11-18"]
["2026-11-19"]
["2026-11-20"]
["2026-11-23"]
["2026-11-24"]
["2026-11-25"]
["2026-11-26"]
["2026-11-27"]
["2026-11-30"]
["2026-12-01"]
["2026-12-02"]
["2026-12-03"]
["2026-12-04"]
["2026-12-07"]
["2026-12-08"]
["2026-12-09"]
["2026-12-10"]
["2026-12-11"]
["2026-12-14"]
["2026-12-15"]
["2026-12-16"]
["2026-12-17"]
["2026-12-18"]
["2026-12-21"]
["2026-12-22"]
["2026-12-23"]
["2026-12-24"]
["2026-12-28"]
["2026-12-29"]
["2026-12-30"]
["2026-12-31"]

{"sheet":"Holidays","index":9,"n_rows":18,"n_cols":16,"rows_kept":18,"cut":false,"hidden":true,"merged":[]}
[2025,"Selected Federal state/area/calendar:","T2 - Target2","EUR"]
[0,1,2,"3",4,"x",24,25]
["HDNb","English","German","How to calc","Active","T2","GB","CU",null,"Abbreviation","English","German","Column"]
["1.","New Year's Day","Neujahrstag","1. January",null,"x","x",null,null,"T2","Target2","Target2","P",null,null,"x"]
["2.","Good Friday","Karfreitag","Easter Sunday – 2d",null,"x","x",null,null,"GB","Great Britain","Großbritannien","Q",null,null,"x"]
["3.","Easter Monday","Ostermontag","Easter Sunday +1d",null,"x","x",null,null,"CU","Cust. Area","Benutzerdefiniert","R",null,null,"x"]
["4.","Early May bank holiday","Früher Maifeiertag","First Monday in May",null,null,"x"]
["5.","Spring bank holiday","Frühlingsfeiertag ","Last Monday in May",null,null,"x"]
["6.","Summer bank holiday","Sommerfeiertag ","Last Monday in August",null,null,"x"]
["7.","Christmas Day","Weihnachtstag","25. December",null,"x","x",null,null,null,null,null,null,null,null,"x"]
["8.","Boxing Day","Zweiter Weihnachtsfeiertag","26. December",null,"x","x",null,null,null,null,null,null,null,null,"x"]
["9.","Substitute day 1","Ersatzfeiertag 1","28. December"]
["10.","Substitute day 2","Ersatzfeiertag 2","29. December"]
["11.","Customer Day 1","Benutzerdefinierter Tag 1","2022-10-02"]
["12.","Customer Day 2","Benutzerdefinierter Tag 2","2022-11-02"]
["13.","Customer Day 3","Benutzerdefinierter Tag 3","2022-12-02"]
["14.","Customer Day 4","Benutzerdefinierter Tag 4","13.02.2022"]
["15.","Customer Day 5","Benutzerdefinierter Tag 5","14.02.2022"]

{"sheet":"DCP_LimitCalculation","index":10,"n_rows":45,"n_cols":21,"rows_kept":45,"cut":false,"hidden":true,"merged":[]}
["Fill in the highlighted cells :","09.01.2025","Thursday",null,"Calculated limit distribution",null,null,null,null,null,null,"Nb","Caption","BL1","BL2","BL3","BL4","BL5","BL6","BL7","BL8"]
[null,"Values in EUR / percent",null,null,null,"Continuous","System:",null,null,"System:",null,1,"Collateral:",52000,50000,1,1,1,1,2,7]
["Collateral ",1000000,null,null,null,"Intraday","M7",null," Auction","ETS",null,2,"Base limit BD Intraday :"]
["Base limit BD Intraday ",22,null,null,"16:00 CET","Trading limit",{"$f":"_xlfn.IFS($C$1=\"Monday\",AuxiliaryCalculationTab!D2,$C$1=\"Tuesday\",AuxiliaryCalculationTab!D3,$C$1=\"Wednesday\",AuxiliaryCalculationTab!D4,$C$1=\"Thursday\",AuxiliaryCalculationTab!D5,$C$1=\"Friday\",AuxiliaryCalculationTab!D6)","v":22},null,"Trading limit",{"$f":"_xlfn.IFS($C$1=\"Monday\",AuxiliaryCalculationTab!E2,$C$1=\"Tuesday\",AuxiliaryCalculationTab!E3,$C$1=\"Wednesday\",AuxiliaryCalculationTab!E4,$C$1=\"Thursday\",AuxiliaryCalculationTab!E5,$C$1=\"Friday\",AuxiliaryCalculationTab!E6)","v":1},null,3,"Base limit NBD Intraday :"]
["Base limit NBD Intraday ",1,null,null,null,null,null,null,null,null,null,4,"Base limit Auction:"]
["Base limit Auction",1,null,null,null,"Available Collateral",{"$f":"B3","v":1000000},null,"Available Collateral",{"$f":"B3","v":1000000},null,5,"Intraday Distribution Percentage:",50,50]
["Intraday Distribution percentage",0.5,null,null,null,"BaseExposure",{"$f":"_xlfn.IFS($C$1=\"Monday\",AuxiliaryCalculationTab!B2,$C$1=\"Tuesday\",AuxiliaryCalculationTab!B3,$C$1=\"Wednesday\",AuxiliaryCalculationTab!B4,$C$1=\"Thursday\",AuxiliaryCalculationTab!B5,$C$1=\"Friday\",AuxiliaryCalculationTab!B6)","v":49},null,"BaseExposure",{"$f":"_xlfn.IFS($C$1=\"Monday\",AuxiliaryCalculationTab!B2,$C$1=\"Tuesday\",AuxiliaryCalculationTab!B3,$C$1=\"Wednesday\",AuxiliaryCalculationTab!B4,$C$1=\"Thursday\",AuxiliaryCalculationTab!B5,$C$1=\"Friday\",AuxiliaryCalculationTab!B6)","v":49},null,6,"Auction Distribution Percentage:"]
["Auction Distribution Percentage",0.5,null,null,null,"Open Risk ",{"$f":"B11","v":0},null,"Open Risk ",{"$f":"B11","v":0},null,7,"Open Financial Risk:"]
[null,null,null,null,null,"  Available Excess Collateral",{"$f":"MAX(G6-G7-G8,0)","v":999951},null,"  Available Excess Collateral",{"$f":"MAX(J6-J7-J8,0)","v":999951},null,8,"Resolved Financial Risk "]
[null,"Values in EUR",null,null,null,"x market distribution",{"$f":"B7","v":0.5},null,"x market distribution",{"$f":"B8","v":0.5},null,9,"Dynamic Limit",66969,54586.23,43668984,54586.23,194294065]
["Open Financial Risk",0,null,null,null,"x limit reset days ",1,null,"x limit reset days ",{"$f":"_xlfn.IFS($C$1=\"Monday\",AuxiliaryCalculationTab!C2,$C$1=\"Tuesday\",AuxiliaryCalculationTab!C3,$C$1=\"Wednesday\",AuxiliaryCalculationTab!C4,$C$1=\"Thursday\",AuxiliaryCalculationTab!C5,$C$1=\"Friday\",AuxiliaryCalculationTab!C6)","v":1}]
["Resolved Financial Risk ",0,null,null,null,"   Dynamic  Limit",{"$f":"(G9*G10)/G11","v":499975.5},null,"   Dynamic  Limit",{"$f":"(J9*J10)/J11","v":499975.5}]
[null,null,null,null,null,"+ Base limit",{"$f":"_xlfn.IFS($C$1=\"Monday\",AuxiliaryCalculationTab!D2,$C$1=\"Tuesday\",AuxiliaryCalculationTab!D3,$C$1=\"Wednesday\",AuxiliaryCalculationTab!D4,$C$1=\"Thursday\",AuxiliaryCalculationTab!D5,$C$1=\"Friday\",AuxiliaryCalculationTab!D6)","v":22},null,"+ Base limit",{"$f":"_xlfn.IFS($C$1=\"Monday\",AuxiliaryCalculationTab!E2,$C$1=\"Tuesday\",AuxiliaryCalculationTab!E3,$C$1=\"Wednesday\",AuxiliaryCalculationTab!E4,$C$1=\"Thursday\",AuxiliaryCalculationTab!E5,$C$1=\"Friday\",AuxiliaryCalculationTab!E6)","v":1}]
[null,null,null,null,"18:00 CET","Trading limit",{"$f":"G12+G13","v":499997.5},null,"Trading limit",{"$f":"J12+J13","v":499976.5}]
[]
[null,null,null,null,"09:00 CET (t+1)","Trading limit",{"$f":"G14+(B12*B7)","v":499997.5},null,"Trading limit",{"$f":"J14+(B12*B8)","v":499976.5}]
[]
[]
["Note:"]
["For Intraday market: the full limit on Friday 18:00 CET is valid until Monday morning. There is no reset during the weekend."]
["For the Auction market: the limit on Friday 18:00 CET will be reset to the same value on Saturday 16:00 CET and Sunday 16:00 CET"]
[]
["If you wish to trade only Intraday fill in the following  :"]
["B4: Base limit BD Intraday --> a value that guarantees your trading between 16:00 and 18:00 CET"]
["B7: Intraday Distribution percentage --> set to 100%"]
["B8: Auction Distribution Percentage --> set to 0%"]
[]
["If you wish to trade only Auction fill in the following  :"]
["B6: Base limit Auction --> Consider carefully if a baselimit is needed as there is no auction between 16:00 and 18:00 CET"]
["B8: Auction Distribution Percentage --> set to 100%"]
["B7: Intraday Distribution percentage --> set to 0%"]
[]
["Attention : the sum of B7 and B8 (Intraday Distribution percentage + Auction Distribution Percentage) should always be equal to 100%"]
[]
[]
[]
[]
[{"$f":"(2*DCP_LimitCalculation!B4)+DCP_LimitCalculation!B6","v":45}]
["2* Base Limit BD Intraday + Base Limit Auction"]
[]
["(2*DCP_LimitCalculation!B4)+(2*DCP_LimitCalculation!B5)+(3*DCP_LimitCalculation!B6)"]
["2 * Base limit BD Intraday + 2 * Base limit NBD Intraday  + "]
["base limit BD intraday + (2 * Base limit NBD Intraday )"]
[]
["   Dynamic  Limit =   (Available Excess Collateral * x marketdistribution) / x limit reset days"]

{"sheet":"AuxiliaryCalculationTab","index":11,"n_rows":20,"n_cols":6,"rows_kept":20,"cut":false,"hidden":true,"merged":[[19,0,19,1]]}
["EUR","Base Exposure  ","Limit Reset day Auction ","Base limit addition Intraday","Base limit addition Auction"]
["Monday",{"$f":"(2*DCP_LimitCalculation!B4)+DCP_LimitCalculation!B6","v":45},1,{"$f":"DCP_LimitCalculation!B4","v":22},{"$f":"DCP_LimitCalculation!B6","v":1}]
["Tuesday",{"$f":"(2*DCP_LimitCalculation!B4)+DCP_LimitCalculation!B6","v":45},1,{"$f":"DCP_LimitCalculation!B4","v":22},{"$f":"DCP_LimitCalculation!B6","v":1}]
["Wednesday",{"$f":"(2*DCP_LimitCalculation!B4)+DCP_LimitCalculation!B6","v":45},1,{"$f":"DCP_LimitCalculation!B4","v":22},{"$f":"DCP_LimitCalculation!B6","v":1}]
["Thursday",{"$f":"(2*DCP_LimitCalculation!B4)+(2*DCP_LimitCalculation!B5)+(3*DCP_LimitCalculation!B6)","v":49},1,{"$f":"DCP_LimitCalculation!B4","v":22},{"$f":"DCP_LimitCalculation!B6","v":1}]
["Friday",{"$f":"(2*DCP_LimitCalculation!B4)+(2*DCP_LimitCalculation!B5)+(3*DCP_LimitCalculation!B6)","v":49},3,{"$f":"DCP_LimitCalculation!B4+(2*DCP_LimitCalculation!B5)","v":24},{"$f":"DCP_LimitCalculation!B6","v":1}]
[]
[]
[]
[]
[]
["Freitag = Base limit BD Intraday plus (2 * Base limit NBD Intraday )"]
[]
[]
[]
[]
[]
[]
[]
["Limit Definition",null,"Currency","Business Day-Base\nlimit (optional*)","Non Business Day-Base\nlimit (optional*)","Collateral\nDistribution\nkey in %**"]